Workbook

Sheet Nat Gas Forward Curve
A2: Natural Gas Forward Curve | N2: Spread / Strip Calculator
B3: Mkt | C3: Prev | D3: My | E3: Implied | I3: Old | J3: New
A4: Mo/Yr | B4: Sprd | C4: Sprd | D4: Sprd | E4: Future | F4: Imp Chg | G4: Last Trade | H4: Net Chg | I4: Settle | J4: Settle | K4: Settle Chg | L4: Exp Date
A5: =RTD("esrtd",,"NG 1!","Delivery") -> Dec'14 | E5: =RTD("esrtd",,"NG 1!","Last") -> 4.187 | F5: =IF(AND(E5<>"",I5<>""),E5-I5,"") -> 0.036 | G5: =RTD("esrtd",,"NG 1!","Last") -> 4.187 | H5: =RTD("esrtd",,"NG 1!","Change") -> 0.036 | I5: =RTD("esrtd",,"NG 1!","PrevPrice") -> 4.151 | J5: =RTD("esrtd",,"NG 1!","NewSettlement") ->  | K5: =IF(AND(I5<>"",J5<>""),J5-I5,"") ->  | L5: =RTD("esrtd",,"NG 1!","Expiration") -> 2014-11-25T07:00:00
A6: =RTD("esrtd",,"NG 2!","Delivery") -> Jan'15 | E6: =RTD("esrtd",,"NG 2!","Last") -> 4.312 | F6: =IF(AND(E6<>"",I6<>""),E6-I6,"") -> 0.008 | G6: =RTD("esrtd",,"NG 2!","Last") -> 4.312 | H6: =RTD("esrtd",,"NG 2!","Change") -> 0.008 | I6: =RTD("esrtd",,"NG 2!","PrevPrice") -> 4.304 | J6: =RTD("esrtd",,"NG 2!","NewSettlement") ->  | K6: =IF(AND(I6<>"",J6<>""),J6-I6,"") ->  | L6: =RTD("esrtd",,"NG 2!","Expiration") -> 2014-12-29T07:00:00 | N6: Quarterlies
A7: =RTD("esrtd",,"NG 3!","Delivery") -> Feb'15 | B7: =RTD("esrtd",,"NG 2!:3!","Market") -> 0.0215 | C7: =I6-I7 -> 0.023 | E7: =IF(D7<>"",E6-D7,IF(B7<>"",E6-B7,E6-C7)) -> 4.2905 | F7: 0.0095 | G7: =RTD("esrtd",,"NG 3!","Last") -> 4.29 | H7: =RTD("esrtd",,"NG 3!","Change") -> 0.009 | I7: =RTD("esrtd",,"NG 3!","PrevPrice") -> 4.281 | J7: =RTD("esrtd",,"NG 3!","NewSettlement") ->  | L7: =RTD("esrtd",,"NG 3!","Expiration") -> 2015-01-28T07:00:00
A8: =RTD("esrtd",,"NG 4!","Delivery") -> Mar'15 | B8: =RTD("esrtd",,"NG 3!:4!","Market") -> 0.0745 | C8: =I7-I8 -> 0.067 | E8: =IF(D8<>"",E7-D8,IF(B8<>"",E7-B8,E7-C8)) -> 4.216 | F8: 0.002 | G8: =RTD("esrtd",,"NG 4!","Last") -> 4.215 | H8: =RTD("esrtd",,"NG 4!","Change") -> 0.001 | I8: =RTD("esrtd",,"NG 4!","PrevPrice") -> 4.214 | J8: =RTD("esrtd",,"NG 4!","NewSettlement") ->  | L8: =RTD("esrtd",,"NG 4!","Expiration") -> 2015-02-25T07:00:00 | N8: Quarter | O8: Implied | P8: OldSet | Q8: NewSet | R8: Chg
A9: =RTD("esrtd",,"NG 5!","Delivery") -> Apr'15 | B9: =RTD("esrtd",,"NG 4!:5!","Market") -> 0.4715 | C9: 0.456 | E9: =IF(D9<>"",E8-D9,IF(B9<>"",E8-B9,E8-C9)) -> 3.7445 | F9: -0.0135 | G9: =RTD("esrtd",,"NG 5!","Last") -> 3.744 | H9: =RTD("esrtd",,"NG 5!","Change") -> -0.014 | I9: =RTD("esrtd",,"NG 5!","PrevPrice") -> 3.758 | J9: =RTD("esrtd",,"NG 5!","NewSettlement") ->  | L9: =RTD("esrtd",,"NG 5!","Expiration") -> 2015-03-27T08:00:00 | N9: =RollingQtr(1) -> Q1 2015 | O9: =IF(ISERROR(IF(N9="","",NGQtrAvg(N9,5))),"",IF(N9="","",NGQtrAvg(N9,5))) -> 4.272833333 | P9: =IF(ISERROR(IF(N9="","",NGQtrAvg(N9,9))),"",IF(N9="","",NGQtrAvg(N9,9))) -> 4.266333333 | Q9: =IF(ISERROR(IF(OR(N9="",J5=""),"",NGQtrAvg(N9,10))),"",IF(OR(N9="",J5=""),"",NGQtrAvg(N9,10))) ->  | R9: =IF(ISERROR(IF(AND(P9<>"",Q9<>""),Q9-P9,"")),"",IF(AND(P9<>"",Q9<>""),Q9-P9,"")) -> 
A10: =RTD("esrtd",,"NG 6!","Delivery") -> May'15 | B10: =RTD("esrtd",,"NG 5!:6!","Market") -> 0.0475 | C10: 0.043 | E10: =IF(D10<>"",E9-D10,IF(B10<>"",E9-B10,E9-C10)) -> 3.697 | F10: -0.018 | G10: =RTD("esrtd",,"NG 6!","Last") -> 3.698 | H10: =RTD("esrtd",,"NG 6!","Change") -> -0.017 | I10: =RTD("esrtd",,"NG 6!","PrevPrice") -> 3.715 | J10: =RTD("esrtd",,"NG 6!","NewSettlement") ->  | L10: =RTD("esrtd",,"NG 6!","Expiration") -> 2015-04-28T08:00:00 | N10: =RollingQtr(2) -> Q2 2015 | O10: =IF(ISERROR(IF(N10="","",NGQtrAvg(N10,5))),"",IF(N10="","",NGQtrAvg(N10,5))) -> 3.718333333 | P10: =IF(ISERROR(IF(N10="","",NGQtrAvg(N10,9))),"",IF(N10="","",NGQtrAvg(N10,9))) -> 3.735 | Q10: =IF(ISERROR(IF(OR(N10="",J6=""),"",NGQtrAvg(N10,10))),"",IF(OR(N10="",J6=""),"",NGQtrAvg(N10,10))) ->  | R10: =IF(ISERROR(IF(AND(P10<>"",Q10<>""),Q10-P10,"")),"",IF(AND(P10<>"",Q10<>""),Q10-P10,"")) -> 
A11: =RTD("esrtd",,"NG 7!","Delivery") -> Jun'15 | B11: =RTD("esrtd",,"NG 6!:7!","Market") -> -0.0165 | C11: -0.017 | E11: 3.7135 | F11: -0.0185 | G11: =RTD("esrtd",,"NG 7!","Last") -> 3.702 | H11: =RTD("esrtd",,"NG 7!","Change") -> -0.03 | I11: =RTD("esrtd",,"NG 7!","PrevPrice") -> 3.732 | J11: =RTD("esrtd",,"NG 7!","NewSettlement") ->  | L11: =RTD("esrtd",,"NG 7!","Expiration") -> 2015-05-27T08:00:00 | N11: =RollingQtr(3) -> Q3 2015 | O11: =IF(ISERROR(IF(N11="","",NGQtrAvg(N11,5))),"",IF(N11="","",NGQtrAvg(N11,5))) -> 3.731 | P11: =IF(ISERROR(IF(N11="","",NGQtrAvg(N11,9))),"",IF(N11="","",NGQtrAvg(N11,9))) -> 3.749 | Q11: =IF(ISERROR(IF(OR(N11="",J7=""),"",NGQtrAvg(N11,10))),"",IF(OR(N11="",J7=""),"",NGQtrAvg(N11,10))) -> 
A12: =RTD("esrtd",,"NG 8!","Delivery") -> Jul'15 | B12: =RTD("esrtd",,"NG 7!:8!","Market") -> -0.022 | C12: -0.022 | E12: 3.7355 | F12: -0.0185 | G12: =RTD("esrtd",,"NG 8!","Last") -> 3.741 | H12: =RTD("esrtd",,"NG 8!","Change") -> -0.013 | I12: =RTD("esrtd",,"NG 8!","PrevPrice") -> 3.754 | J12: =RTD("esrtd",,"NG 8!","NewSettlement") ->  | L12: =RTD("esrtd",,"NG 8!","Expiration") -> 2015-06-26T08:00:00 | N12: =RollingQtr(4) -> Q4 2015 | O12: =IF(ISERROR(IF(N12="","",NGQtrAvg(N12,5))),"",IF(N12="","",NGQtrAvg(N12,5))) -> 3.853666667 | P12: =IF(ISERROR(IF(N12="","",NGQtrAvg(N12,9))),"",IF(N12="","",NGQtrAvg(N12,9))) -> 3.870666667 | Q12: =IF(ISERROR(IF(OR(N12="",J8=""),"",NGQtrAvg(N12,10))),"",IF(OR(N12="",J8=""),"",NGQtrAvg(N12,10))) -> 
A13: =RTD("esrtd",,"NG 9!","Delivery") -> Aug'15 | B13: =RTD("esrtd",,"NG 8!:9!","Market") -> -0.0035 | C13: -0.003 | E13: 3.739 | F13: -0.018 | G13: =RTD("esrtd",,"NG 9!","Last") -> 3.733 | H13: =RTD("esrtd",,"NG 9!","Change") -> -0.024 | I13: =RTD("esrtd",,"NG 9!","PrevPrice") -> 3.757 | J13: =RTD("esrtd",,"NG 9!","NewSettlement") ->  | L13: =RTD("esrtd",,"NG 9!","Expiration") -> 2015-07-29T08:00:00 | N13: =RollingQtr(5) -> Q1 2016 | O13: =IF(ISERROR(IF(N13="","",NGQtrAvg(N13,5))),"",IF(N13="","",NGQtrAvg(N13,5))) -> 4.0835 | P13: =IF(ISERROR(IF(N13="","",NGQtrAvg(N13,9))),"",IF(N13="","",NGQtrAvg(N13,9))) -> 4.104666667 | Q13: =IF(ISERROR(IF(OR(N13="",J9=""),"",NGQtrAvg(N13,10))),"",IF(OR(N13="",J9=""),"",NGQtrAvg(N13,10))) -> 
A14: =RTD("esrtd",,"NG 10!","Delivery") -> Sep'15 | B14: =RTD("esrtd",,"NG 9!:10!","Market") -> 0.0205 | C14: 0.021 | E14: 3.7185 | F14: -0.0175 | G14: =RTD("esrtd",,"NG 10!","Last") -> 3.698 | H14: =RTD("esrtd",,"NG 10!","Change") -> -0.038 | I14: =RTD("esrtd",,"NG 10!","PrevPrice") -> 3.736 | J14: =RTD("esrtd",,"NG 10!","NewSettlement") ->  | L14: =RTD("esrtd",,"NG 10!","Expiration") -> 2015-08-27T08:00:00 | N14: =RollingQtr(6) -> Q2 2016 | O14: =IF(ISERROR(IF(N14="","",NGQtrAvg(N14,5))),"",IF(N14="","",NGQtrAvg(N14,5))) -> 3.771166667 | P14: =IF(ISERROR(IF(N14="","",NGQtrAvg(N14,9))),"",IF(N14="","",NGQtrAvg(N14,9))) -> 3.796 | Q14: =IF(ISERROR(IF(OR(N14="",J10=""),"",NGQtrAvg(N14,10))),"",IF(OR(N14="",J10=""),"",NGQtrAvg(N14,10))) -> 
A15: =RTD("esrtd",,"NG 11!","Delivery") -> Oct'15 | B15: =RTD("esrtd",,"NG 10!:11!","Market") -> -0.0265 | C15: -0.024 | E15: 3.745 | F15: -0.015 | G15: =RTD("esrtd",,"NG 11!","Last") -> 3.739 | H15: =RTD("esrtd",,"NG 11!","Change") -> -0.021 | I15: =RTD("esrtd",,"NG 11!","PrevPrice") -> 3.76 | J15: =RTD("esrtd",,"NG 11!","NewSettlement") ->  | L15: =RTD("esrtd",,"NG 11!","Expiration") -> 2015-09-28T08:00:00 | N15: =RollingQtr(7) -> Q3 2016 | O15: =IF(ISERROR(IF(N15="","",NGQtrAvg(N15,5))),"",IF(N15="","",NGQtrAvg(N15,5))) -> 3.806333333 | P15: =IF(ISERROR(IF(N15="","",NGQtrAvg(N15,9))),"",IF(N15="","",NGQtrAvg(N15,9))) -> 3.835333333 | Q15: =IF(ISERROR(IF(OR(N15="",J11=""),"",NGQtrAvg(N15,10))),"",IF(OR(N15="",J11=""),"",NGQtrAvg(N15,10))) -> 
A16: =RTD("esrtd",,"NG 12!","Delivery") -> Nov'15 | B16: =RTD("esrtd",,"NG 11!:12!","Market") -> -0.0775 | C16: -0.079 | E16: 3.8225 | F16: -0.0165 | G16: =RTD("esrtd",,"NG 12!","Last") -> 3.825 | H16: =RTD("esrtd",,"NG 12!","Change") -> -0.014 | I16: =RTD("esrtd",,"NG 12!","PrevPrice") -> 3.839 | J16: =RTD("esrtd",,"NG 12!","NewSettlement") ->  | L16: =RTD("esrtd",,"NG 12!","Expiration") -> 2015-10-28T08:00:00 | N16: =RollingQtr(8) -> Q4 2016 | O16: =IF(ISERROR(IF(N16="","",NGQtrAvg(N16,5))),"",IF(N16="","",NGQtrAvg(N16,5))) -> 3.9265 | P16: =IF(ISERROR(IF(N16="","",NGQtrAvg(N16,9))),"",IF(N16="","",NGQtrAvg(N16,9))) -> 3.956333333 | Q16: =IF(ISERROR(IF(OR(N16="",J12=""),"",NGQtrAvg(N16,10))),"",IF(OR(N16="",J12=""),"",NGQtrAvg(N16,10))) -> 
A17: =RTD("esrtd",,"NG 13!","Delivery") -> Dec'15 | B17: =RTD("esrtd",,"NG 12!:13!","Market") -> -0.171 | C17: -0.174 | E17: 3.9935 | F17: -0.0195 | G17: =RTD("esrtd",,"NG 13!","Last") -> 3.989 | H17: =RTD("esrtd",,"NG 13!","Change") -> -0.024 | I17: =RTD("esrtd",,"NG 13!","PrevPrice") -> 4.013 | J17: =RTD("esrtd",,"NG 13!","NewSettlement") ->  | L17: =RTD("esrtd",,"NG 13!","Expiration") -> 2015-11-25T07:00:00 | N17: =RollingQtr(9) -> Q1 2017 | O17: =IF(ISERROR(IF(N17="","",NGQtrAvg(N17,5))),"",IF(N17="","",NGQtrAvg(N17,5))) -> 4.172166667 | P17: =IF(ISERROR(IF(N17="","",NGQtrAvg(N17,9))),"",IF(N17="","",NGQtrAvg(N17,9))) -> 4.193333333 | Q17: =IF(ISERROR(IF(OR(N17="",J13=""),"",NGQtrAvg(N17,10))),"",IF(OR(N17="",J13=""),"",NGQtrAvg(N17,10))) -> 
A18: =RTD("esrtd",,"NG 14!","Delivery") -> Jan'16 | B18: =RTD("esrtd",,"NG 13!:14!","Market") -> -0.136 | C18: -0.138 | E18: 4.1295 | F18: -0.0215 | G18: =RTD("esrtd",,"NG 14!","Last") -> 4.133 | H18: =RTD("esrtd",,"NG 14!","Change") -> -0.018 | I18: =RTD("esrtd",,"NG 14!","PrevPrice") -> 4.151 | J18: =RTD("esrtd",,"NG 14!","NewSettlement") ->  | L18: =RTD("esrtd",,"NG 14!","Expiration") -> 2015-12-29T07:00:00 | N18: =RollingQtr(10) -> Q2 2017 | O18: =IF(ISERROR(IF(N18="","",NGQtrAvg(N18,5))),"",IF(N18="","",NGQtrAvg(N18,5))) -> 3.899 | P18: =IF(ISERROR(IF(N18="","",NGQtrAvg(N18,9))),"",IF(N18="","",NGQtrAvg(N18,9))) -> 3.917 | Q18: =IF(ISERROR(IF(OR(N18="",J14=""),"",NGQtrAvg(N18,10))),"",IF(OR(N18="",J14=""),"",NGQtrAvg(N18,10))) -> 
A19: =RTD("esrtd",,"NG 15!","Delivery") -> Feb'16 | B19: =RTD("esrtd",,"NG 14!:15!","Market") -> 0.032 | C19: 0.032 | E19: 4.0975 | F19: -0.0215 | G19: =RTD("esrtd",,"NG 15!","Last") -> 4.094 | H19: =RTD("esrtd",,"NG 15!","Change") -> -0.025 | I19: =RTD("esrtd",,"NG 15!","PrevPrice") -> 4.119 | J19: =RTD("esrtd",,"NG 15!","NewSettlement") ->  | L19: =RTD("esrtd",,"NG 15!","Expiration") -> 2016-01-27T07:00:00 | N19: =RollingQtr(11) -> Q3 2017 | O19: =IF(ISERROR(IF(N19="","",NGQtrAvg(N19,5))),"",IF(N19="","",NGQtrAvg(N19,5))) -> 3.94 | P19: =IF(ISERROR(IF(N19="","",NGQtrAvg(N19,9))),"",IF(N19="","",NGQtrAvg(N19,9))) -> 3.971 | Q19: =IF(ISERROR(IF(OR(N19="",J15=""),"",NGQtrAvg(N19,10))),"",IF(OR(N19="",J15=""),"",NGQtrAvg(N19,10))) -> 
A20: =RTD("esrtd",,"NG 16!","Delivery") -> Mar'16 | B20: =RTD("esrtd",,"NG 15!:16!","Market") -> 0.074 | C20: 0.075 | E20: 4.0235 | F20: -0.0205 | G20: =RTD("esrtd",,"NG 16!","Last") -> 4.028 | H20: =RTD("esrtd",,"NG 16!","Change") -> -0.016 | I20: =RTD("esrtd",,"NG 16!","PrevPrice") -> 4.044 | J20: =RTD("esrtd",,"NG 16!","NewSettlement") ->  | L20: =RTD("esrtd",,"NG 16!","Expiration") -> 2016-02-25T07:00:00
A21: =RTD("esrtd",,"NG 17!","Delivery") -> Apr'16 | B21: =RTD("esrtd",,"NG 16!:17!","Market") -> 0.2545 | C21: 0.25 | E21: 3.769 | F21: -0.025 | G21: =RTD("esrtd",,"NG 17!","Last") -> 3.763 | H21: =RTD("esrtd",,"NG 17!","Change") -> -0.031 | I21: =RTD("esrtd",,"NG 17!","PrevPrice") -> 3.794 | J21: =RTD("esrtd",,"NG 17!","NewSettlement") ->  | L21: =RTD("esrtd",,"NG 17!","Expiration") -> 2016-03-29T08:00:00 | N21: Calendars
A22: =RTD("esrtd",,"NG 18!","Delivery") -> May'16 | B22: =RTD("esrtd",,"NG 17!:18!","Market") -> 0.0085 | C22: 0.009 | E22: 3.7605 | F22: -0.0245 | G22: =RTD("esrtd",,"NG 18!","Last") -> 3.745 | H22: =RTD("esrtd",,"NG 18!","Change") -> -0.04 | I22: =RTD("esrtd",,"NG 18!","PrevPrice") -> 3.785 | J22: =RTD("esrtd",,"NG 18!","NewSettlement") ->  | L22: =RTD("esrtd",,"NG 18!","Expiration") -> 2016-04-27T08:00:00
A23: =RTD("esrtd",,"NG 19!","Delivery") -> Jun'16 | B23: =RTD("esrtd",,"NG 18!:19!","Market") -> -0.0235 | C23: -0.024 | E23: 3.784 | F23: -0.025 | G23: =RTD("esrtd",,"NG 19!","Last") -> 3.777 | H23: =RTD("esrtd",,"NG 19!","Change") -> -0.032 | I23: =RTD("esrtd",,"NG 19!","PrevPrice") -> 3.809 | J23: =RTD("esrtd",,"NG 19!","NewSettlement") ->  | L23: =RTD("esrtd",,"NG 19!","Expiration") -> 2016-05-26T08:00:00 | N23: Cal Year | O23: Implied | P23: OldSet | Q23: NewSet | R23: Chg
A24: =RTD("esrtd",,"NG 20!","Delivery") -> Jul'16 | B24: =RTD("esrtd",,"NG 19!:20!","Market") -> -0.023 | C24: -0.025 | E24: 3.807 | F24: -0.027 | G24: =RTD("esrtd",,"NG 20!","Last") -> 3.791 | H24: =RTD("esrtd",,"NG 20!","Change") -> -0.043 | I24: =RTD("esrtd",,"NG 20!","PrevPrice") -> 3.834 | J24: =RTD("esrtd",,"NG 20!","NewSettlement") ->  | L24: =RTD("esrtd",,"NG 20!","Expiration") -> 2016-06-28T08:00:00 | N24: =RollingYear(1) -> CAL 2015 | O24: =IF(N24="","",calng(N24,5)) -> 3.893958333 | P24: =IF(N24="","",calng(N24,9)) -> 3.90525 | Q24: =IF(OR(N24="",J5=""),"",calng(N24,10)) ->  | R24: =IF(AND(P24<>"",Q24<>""),Q24-P24,"") -> 
A25: =RTD("esrtd",,"NG 21!","Delivery") -> Aug'16 | B25: =RTD("esrtd",,"NG 20!:21!","Market") -> -0.0065 | C25: -0.009 | E25: 3.8135 | F25: -0.0295 | G25: =RTD("esrtd",,"NG 21!","Last") -> 3.8 | H25: =RTD("esrtd",,"NG 21!","Change") -> -0.043 | I25: =RTD("esrtd",,"NG 21!","PrevPrice") -> 3.843 | J25: =RTD("esrtd",,"NG 21!","NewSettlement") ->  | L25: =RTD("esrtd",,"NG 21!","Expiration") -> 2016-07-27T08:00:00 | N25: =RollingYear(2) -> CAL 2016 | O25: =IF(N25="","",calng(N25,5)) -> 3.896875 | P25: =IF(N25="","",calng(N25,9)) -> 3.923083333 | Q25: =IF(OR(N25="",J6=""),"",calng(N25,10)) ->  | R25: =IF(AND(P25<>"",Q25<>""),Q25-P25,"") -> 
A26: =RTD("esrtd",,"NG 22!","Delivery") -> Sep'16 | B26: =RTD("esrtd",,"NG 21!:22!","Market") -> 0.015 | C26: 0.014 | E26: 3.7985 | F26: -0.0305 | G26: =RTD("esrtd",,"NG 22!","Last") -> 3.8 | H26: =RTD("esrtd",,"NG 22!","Change") -> -0.029 | I26: =RTD("esrtd",,"NG 22!","PrevPrice") -> 3.829 | J26: =RTD("esrtd",,"NG 22!","NewSettlement") ->  | L26: =RTD("esrtd",,"NG 22!","Expiration") -> 2016-08-29T08:00:00 | N26: =RollingYear(3) -> CAL 2017 | O26: 4.020708333 | P26: 4.046 | Q26: =IF(OR(N26="",J7=""),"",calng(N26,10)) -> 
A27: =RTD("esrtd",,"NG 23!","Delivery") -> Oct'16 | B27: =RTD("esrtd",,"NG 22!:23!","Market") -> -0.025 | C27: -0.024 | E27: 3.8235 | F27: -0.0295 | G27: =RTD("esrtd",,"NG 23!","Last") -> 3.817 | H27: =RTD("esrtd",,"NG 23!","Change") -> -0.036 | I27: =RTD("esrtd",,"NG 23!","PrevPrice") -> 3.853 | J27: =RTD("esrtd",,"NG 23!","NewSettlement") ->  | L27: =RTD("esrtd",,"NG 23!","Expiration") -> 2016-09-28T08:00:00 | N27: =RollingYear(4) -> CAL 2018 | O27: 4.163333333 | P27: 4.184083333 | Q27: =IF(OR(N27="",J8=""),"",calng(N27,10)) -> 
A28: =RTD("esrtd",,"NG 24!","Delivery") -> Nov'16 | B28: =RTD("esrtd",,"NG 23!:24!","Market") -> -0.066 | C28: -0.07 | E28: 3.8895 | F28: -0.0335 | G28: =RTD("esrtd",,"NG 24!","Last") -> 3.895 | H28: =RTD("esrtd",,"NG 24!","Change") -> -0.028 | I28: =RTD("esrtd",,"NG 24!","PrevPrice") -> 3.923 | J28: =RTD("esrtd",,"NG 24!","NewSettlement") ->  | L28: =RTD("esrtd",,"NG 24!","Expiration") -> 2016-10-27T08:00:00 | N28: =RollingYear(5) -> CAL 2019 | O28: 4.302416667 | P28: 4.317416667 | Q28: =IF(OR(N28="",J9=""),"",calng(N28,10)) -> 
A29: =RTD("esrtd",,"NG 25!","Delivery") -> Dec'16 | B29: =RTD("esrtd",,"NG 24!:25!","Market") -> -0.177 | C29: -0.17 | E29: 4.0665 | F29: -0.0265 | G29: =RTD("esrtd",,"NG 25!","Last") -> 4.074 | H29: =RTD("esrtd",,"NG 25!","Change") -> -0.019 | I29: =RTD("esrtd",,"NG 25!","PrevPrice") -> 4.093 | J29: =RTD("esrtd",,"NG 25!","NewSettlement") ->  | L29: =RTD("esrtd",,"NG 25!","Expiration") -> 2016-11-28T07:00:00 | N29: =RollingYear(6) -> CAL 2020 | O29: 4.43975 | P29: 4.45475 | Q29: =IF(OR(N29="",J10=""),"",calng(N29,10)) -> 
A30: =RTD("esrtd",,"NG 26!","Delivery") -> Jan'17 | B30: =RTD("esrtd",,"NG 25!:26!","Market") -> -0.135 | C30: -0.135 | E30: 4.2015 | F30: -0.0265 | G30: =RTD("esrtd",,"NG 26!","Last") -> 4.199 | H30: =RTD("esrtd",,"NG 26!","Change") -> -0.029 | I30: =RTD("esrtd",,"NG 26!","PrevPrice") -> 4.228 | J30: =RTD("esrtd",,"NG 26!","NewSettlement") ->  | L30: =RTD("esrtd",,"NG 26!","Expiration") -> 2016-12-28T07:00:00 | N30: =RollingYear(7) -> CAL 2021 | O30: 4.537916667 | P30: 4.552916667 | Q30: =IF(OR(N30="",J11=""),"",calng(N30,10)) -> 
A31: =RTD("esrtd",,"NG 27!","Delivery") -> Feb'17 | B31: =RTD("esrtd",,"NG 26!:27!","Market") -> 0.017 | C31: 0.022 | E31: 4.1845 | F31: -0.0215 | G31: =RTD("esrtd",,"NG 27!","Last") ->  | H31: =RTD("esrtd",,"NG 27!","Change") ->  | I31: =RTD("esrtd",,"NG 27!","PrevPrice") -> 4.206 | J31: =RTD("esrtd",,"NG 27!","NewSettlement") ->  | L31: =RTD("esrtd",,"NG 27!","Expiration") -> 2017-01-27T07:00:00 | N31: =RollingYear(8) -> CAL 2022 | O31: 4.6235 | P31: 4.6385 | Q31: =IF(OR(N31="",J12=""),"",calng(N31,10)) -> 
A32: =RTD("esrtd",,"NG 28!","Delivery") -> Mar'17 | B32: =RTD("esrtd",,"NG 27!:28!","Market") -> 0.054 | C32: 0.06 | E32: 4.1305 | F32: -0.0155 | G32: =RTD("esrtd",,"NG 28!","Last") ->  | H32: =RTD("esrtd",,"NG 28!","Change") ->  | I32: =RTD("esrtd",,"NG 28!","PrevPrice") -> 4.146 | J32: =RTD("esrtd",,"NG 28!","NewSettlement") ->  | L32: =RTD("esrtd",,"NG 28!","Expiration") -> 2017-02-24T07:00:00 | N32: =RollingYear(9) -> CAL 2023 | O32: 4.69775 | P32: 4.71275 | Q32: =IF(OR(N32="",J13=""),"",calng(N32,10)) -> 
A33: =RTD("esrtd",,"NG 29!","Delivery") -> Apr'17 | B33: =RTD("esrtd",,"NG 28!:29!","Market") -> 0.2375 | C33: 0.235 | E33: 3.893 | F33: -0.018 | G33: =RTD("esrtd",,"NG 29!","Last") -> 3.891 | H33: =RTD("esrtd",,"NG 29!","Change") -> -0.02 | I33: =RTD("esrtd",,"NG 29!","PrevPrice") -> 3.911 | J33: =RTD("esrtd",,"NG 29!","NewSettlement") ->  | L33: =RTD("esrtd",,"NG 29!","Expiration") -> 2017-03-29T08:00:00 | N33: =RollingYear(10) -> CAL 2024 | O33: 4.76475 | P33: 4.77975 | Q33: =IF(OR(N33="",J14=""),"",calng(N33,10)) -> 
A34: =RTD("esrtd",,"NG 30!","Delivery") -> May'17 | B34: =RTD("esrtd",,"NG 29!:30!","Market") -> 0.005 | C34: 0.005 | E34: 3.888 | F34: -0.018 | G34: =RTD("esrtd",,"NG 30!","Last") ->  | H34: =RTD("esrtd",,"NG 30!","Change") ->  | I34: =RTD("esrtd",,"NG 30!","PrevPrice") -> 3.906 | J34: =RTD("esrtd",,"NG 30!","NewSettlement") ->  | L34: =RTD("esrtd",,"NG 30!","Expiration") -> 2017-04-26T08:00:00 | N34: =RollingYear(11) -> CAL 2025 | O34: 4.833333333 | P34: 4.848333333 | Q34: =IF(OR(N34="",J15=""),"",calng(N34,10)) -> 
A35: =RTD("esrtd",,"NG 31!","Delivery") -> Jun'17 | B35: =RTD("esrtd",,"NG 30!:31!","Market") -> -0.028 | C35: -0.028 | E35: 3.916 | F35: -0.018 | G35: =RTD("esrtd",,"NG 31!","Last") ->  | H35: =RTD("esrtd",,"NG 31!","Change") ->  | I35: =RTD("esrtd",,"NG 31!","PrevPrice") -> 3.934 | J35: =RTD("esrtd",,"NG 31!","NewSettlement") ->  | L35: =RTD("esrtd",,"NG 31!","Expiration") -> 2017-05-26T08:00:00
A36: =RTD("esrtd",,"NG 32!","Delivery") -> Jul'17 | B36: =RTD("esrtd",,"NG 31!:32!","Market") -> -0.02 | C36: -0.033 | E36: 3.936 | F36: -0.031 | G36: =RTD("esrtd",,"NG 32!","Last") ->  | H36: =RTD("esrtd",,"NG 32!","Change") ->  | I36: =RTD("esrtd",,"NG 32!","PrevPrice") -> 3.967 | J36: =RTD("esrtd",,"NG 32!","NewSettlement") ->  | L36: =RTD("esrtd",,"NG 32!","Expiration") -> 2017-06-28T08:00:00 | N36: Seasonals
A37: =RTD("esrtd",,"NG 33!","Delivery") -> Aug'17 | B37: =RTD("esrtd",,"NG 32!:33!","Market") -> -0.011 | C37: -0.011 | E37: 3.947 | F37: -0.031 | G37: =RTD("esrtd",,"NG 33!","Last") ->  | H37: =RTD("esrtd",,"NG 33!","Change") ->  | I37: =RTD("esrtd",,"NG 33!","PrevPrice") -> 3.978 | J37: =RTD("esrtd",,"NG 33!","NewSettlement") ->  | L37: =RTD("esrtd",,"NG 33!","Expiration") -> 2017-07-27T08:00:00
A38: =RTD("esrtd",,"NG 34!","Delivery") -> Sep'17 | B38: =RTD("esrtd",,"NG 33!:34!","Market") -> 0.01 | C38: 0.01 | E38: 3.937 | F38: -0.031 | G38: =RTD("esrtd",,"NG 34!","Last") ->  | H38: =RTD("esrtd",,"NG 34!","Change") ->  | I38: =RTD("esrtd",,"NG 34!","PrevPrice") -> 3.968 | J38: =RTD("esrtd",,"NG 34!","NewSettlement") ->  | L38: =RTD("esrtd",,"NG 34!","Expiration") -> 2017-08-29T08:00:00 | N38: Season | O38: Implied | P38: OldSet | Q38: NewSet | R38: Chg
A39: =RTD("esrtd",,"NG 35!","Delivery") -> Oct'17 | B39: =RTD("esrtd",,"NG 34!:35!","Market") -> -0.024 | C39: -0.024 | E39: 3.961 | F39: -0.031 | G39: =RTD("esrtd",,"NG 35!","Last") ->  | H39: =RTD("esrtd",,"NG 35!","Change") ->  | I39: =RTD("esrtd",,"NG 35!","PrevPrice") -> 3.992 | J39: =RTD("esrtd",,"NG 35!","NewSettlement") ->  | L39: =RTD("esrtd",,"NG 35!","Expiration") -> 2017-09-27T08:00:00 | N39: SUMMER 2015 | O39: =IF(N39="","",ngsumwinstrip(N39,5)) -> 3.727571429 | P39: =IF(N39="","",ngsumwinstrip(N39,9)) -> 3.744571429 | Q39: =IF(OR(N39="",J5=""),"",ngsumwinstrip(N39,10)) ->  | R39: =IF(AND(P39<>"",Q39<>""),Q39-P39,"") -> 
A40: =RTD("esrtd",,"NG 36!","Delivery") -> Nov'17 | B40: =RTD("esrtd",,"NG 35!:36!","Market") -> -0.081 | C40: -0.081 | E40: 4.042 | F40: -0.031 | G40: =RTD("esrtd",,"NG 36!","Last") ->  | H40: =RTD("esrtd",,"NG 36!","Change") ->  | I40: =RTD("esrtd",,"NG 36!","PrevPrice") -> 4.073 | J40: =RTD("esrtd",,"NG 36!","NewSettlement") ->  | L40: =RTD("esrtd",,"NG 36!","Expiration") -> 2017-10-27T08:00:00 | N40: WINTER 2015 | O40: =IF(N40="","",ngsumwinstrip(N40,5)) -> 4.0133 | P40: =IF(N40="","",ngsumwinstrip(N40,9)) -> 4.0332 | Q40: =IF(OR(N40="",J6=""),"",ngsumwinstrip(N40,10)) ->  | R40: =IF(AND(P40<>"",Q40<>""),Q40-P40,"") -> 
A41: =RTD("esrtd",,"NG 37!","Delivery") -> Dec'17 | B41: =RTD("esrtd",,"NG 36!:37!","Market") -> -0.17 | C41: -0.17 | E41: 4.212 | F41: -0.031 | G41: =RTD("esrtd",,"NG 37!","Last") -> 4.235 | H41: =RTD("esrtd",,"NG 37!","Change") -> -0.008 | I41: =RTD("esrtd",,"NG 37!","PrevPrice") -> 4.243 | J41: =RTD("esrtd",,"NG 37!","NewSettlement") ->  | L41: =RTD("esrtd",,"NG 37!","Expiration") -> 2017-11-28T07:00:00 | N41: SUMMER 2016 | O41: 3.793714286 | P41: 3.821 | Q41: =IF(OR(N41="",J7=""),"",ngsumwinstrip(N41,10)) ->  | R41: =IF(AND(P41<>"",Q41<>""),Q41-P41,"") -> 
A42: =RTD("esrtd",,"NG 38!","Delivery") -> Jan'18 | B42: =RTD("esrtd",,"NG 37!:38!","Market") -> -0.132 | C42: -0.132 | E42: 4.344 | F42: -0.031 | G42: =RTD("esrtd",,"NG 38!","Last") ->  | H42: =RTD("esrtd",,"NG 38!","Change") ->  | I42: =RTD("esrtd",,"NG 38!","PrevPrice") -> 4.375 | J42: =RTD("esrtd",,"NG 38!","NewSettlement") ->  | L42: =RTD("esrtd",,"NG 38!","Expiration") -> 2017-12-27T07:00:00 | N42: WINTER 2016 | O42: 4.0945 | P42: 4.1192 | Q42: =IF(OR(N42="",J8=""),"",ngsumwinstrip(N42,10)) -> 
A43: =RTD("esrtd",,"NG 39!","Delivery") -> Feb'18 | B43: =RTD("esrtd",,"NG 38!:39!","Market") -> 0.022 | C43: 0.022 | E43: 4.322 | F43: -0.031 | G43: =RTD("esrtd",,"NG 39!","Last") ->  | H43: =RTD("esrtd",,"NG 39!","Change") ->  | I43: =RTD("esrtd",,"NG 39!","PrevPrice") -> 4.353 | J43: =RTD("esrtd",,"NG 39!","NewSettlement") ->  | L43: =RTD("esrtd",,"NG 39!","Expiration") -> 2018-01-29T07:00:00 | N43: SUMMER 2017 | O43: 3.925428571 | P43: 3.950857143 | Q43: =IF(OR(N43="",J9=""),"",ngsumwinstrip(N43,10)) -> 
A44: =RTD("esrtd",,"NG 40!","Delivery") -> Mar'18 | B44: =RTD("esrtd",,"NG 39!:40!","Market") -> 0.06 | C44: 0.06 | E44: 4.262 | F44: -0.031 | G44: =RTD("esrtd",,"NG 40!","Last") ->  | H44: =RTD("esrtd",,"NG 40!","Change") ->  | I44: =RTD("esrtd",,"NG 40!","PrevPrice") -> 4.293 | J44: =RTD("esrtd",,"NG 40!","NewSettlement") ->  | L44: =RTD("esrtd",,"NG 40!","Expiration") -> 2018-02-26T07:00:00 | N44: SUMMER 2018 | O44: 4.065857143 | P44: 4.083857143 | Q44: =IF(OR(N44="",J10=""),"",ngsumwinstrip(N44,10)) -> 
A45: =RTD("esrtd",,"NG 41!","Delivery") -> Apr'18 | B45: =RTD("esrtd",,"NG 40!:41!","Market") -> 0.255 | C45: 0.25 | E45: 4.007 | F45: -0.036 | G45: =RTD("esrtd",,"NG 41!","Last") ->  | H45: =RTD("esrtd",,"NG 41!","Change") ->  | I45: =RTD("esrtd",,"NG 41!","PrevPrice") -> 4.043 | J45: =RTD("esrtd",,"NG 41!","NewSettlement") ->  | L45: =RTD("esrtd",,"NG 41!","Expiration") -> 2018-03-27T08:00:00 | N45: SUMMER 2018 | O45: 4.065857143 | P45: 4.083857143 | Q45: =IF(OR(N45="",J11=""),"",ngsumwinstrip(N45,10)) -> 
A46: =RTD("esrtd",,"NG 42!","Delivery") -> May'18 | B46: =RTD("esrtd",,"NG 41!:42!","Market") -> -0.016 | C46: 0.005 | E46: 4.023 | F46: -0.015 | G46: =RTD("esrtd",,"NG 42!","Last") ->  | H46: =RTD("esrtd",,"NG 42!","Change") ->  | I46: =RTD("esrtd",,"NG 42!","PrevPrice") -> 4.038 | J46: =RTD("esrtd",,"NG 42!","NewSettlement") ->  | L46: =RTD("esrtd",,"NG 42!","Expiration") -> 2018-04-26T08:00:00 | N46: WINTER 2018 | O46: 4.396 | P46: 4.411 | Q46: =IF(OR(N46="",J12=""),"",ngsumwinstrip(N46,10)) -> 
A47: =RTD("esrtd",,"NG 43!","Delivery") -> Jun'18 | B47: =RTD("esrtd",,"NG 42!:43!","Market") -> -0.028 | C47: -0.028 | E47: 4.051 | F47: -0.015 | G47: =RTD("esrtd",,"NG 43!","Last") ->  | H47: =RTD("esrtd",,"NG 43!","Change") ->  | I47: =RTD("esrtd",,"NG 43!","PrevPrice") -> 4.066 | J47: =RTD("esrtd",,"NG 43!","NewSettlement") ->  | L47: =RTD("esrtd",,"NG 43!","Expiration") -> 2018-05-29T08:00:00 | N47: SUMMER 2019 | O47: 4.195285714 | P47: 4.210285714 | Q47: =IF(OR(N47="",J13=""),"",ngsumwinstrip(N47,10)) -> 
A48: =RTD("esrtd",,"NG 44!","Delivery") -> Jul'18 | B48: =RTD("esrtd",,"NG 43!:44!","Market") -> -0.032 | C48: -0.032 | E48: 4.083 | F48: -0.015 | G48: =RTD("esrtd",,"NG 44!","Last") ->  | H48: =RTD("esrtd",,"NG 44!","Change") ->  | I48: =RTD("esrtd",,"NG 44!","PrevPrice") -> 4.098 | J48: =RTD("esrtd",,"NG 44!","NewSettlement") ->  | L48: =RTD("esrtd",,"NG 44!","Expiration") -> 2018-06-27T08:00:00 | N48: WINTER 2019 | O48: 4.5382 | P48: 4.5532 | Q48: =IF(OR(N48="",J14=""),"",ngsumwinstrip(N48,10)) -> 
A49: =RTD("esrtd",,"NG 45!","Delivery") -> Aug'18 | B49: =RTD("esrtd",,"NG 44!:45!","Market") -> -0.012 | C49: -0.012 | E49: 4.095 | F49: -0.015 | G49: =RTD("esrtd",,"NG 45!","Last") ->  | H49: =RTD("esrtd",,"NG 45!","Change") ->  | I49: =RTD("esrtd",,"NG 45!","PrevPrice") -> 4.11 | J49: =RTD("esrtd",,"NG 45!","NewSettlement") ->  | L49: =RTD("esrtd",,"NG 45!","Expiration") -> 2018-07-27T08:00:00 | N49: SUMMER 2020 | O49: 4.329714286 | P49: 4.344714286 | Q49: =IF(OR(N49="",J15=""),"",ngsumwinstrip(N49,10)) -> 
A50: =RTD("esrtd",,"NG 46!","Delivery") -> Sep'18 | B50: =RTD("esrtd",,"NG 45!:46!","Market") -> 0.006 | C50: 0.006 | E50: 4.089 | F50: -0.015 | G50: =RTD("esrtd",,"NG 46!","Last") ->  | H50: =RTD("esrtd",,"NG 46!","Change") ->  | I50: =RTD("esrtd",,"NG 46!","PrevPrice") -> 4.104 | J50: =RTD("esrtd",,"NG 46!","NewSettlement") ->  | L50: =RTD("esrtd",,"NG 46!","Expiration") -> 2018-08-29T08:00:00
A51: =RTD("esrtd",,"NG 47!","Delivery") -> Oct'18 | B51: =RTD("esrtd",,"NG 46!:47!","Market") -> -0.024 | C51: -0.024 | E51: 4.113 | F51: -0.015 | G51: =RTD("esrtd",,"NG 47!","Last") ->  | H51: =RTD("esrtd",,"NG 47!","Change") ->  | I51: =RTD("esrtd",,"NG 47!","PrevPrice") -> 4.128 | J51: =RTD("esrtd",,"NG 47!","NewSettlement") ->  | L51: =RTD("esrtd",,"NG 47!","Expiration") -> 2018-09-26T08:00:00
A52: =RTD("esrtd",,"NG 48!","Delivery") -> Nov'18 | B52: =RTD("esrtd",,"NG 47!:48!","Market") -> -0.085 | C52: -0.085 | E52: 4.198 | F52: -0.015 | G52: =RTD("esrtd",,"NG 48!","Last") ->  | H52: =RTD("esrtd",,"NG 48!","Change") ->  | I52: =RTD("esrtd",,"NG 48!","PrevPrice") -> 4.213 | J52: =RTD("esrtd",,"NG 48!","NewSettlement") ->  | L52: =RTD("esrtd",,"NG 48!","Expiration") -> 2018-10-29T08:00:00
A53: =RTD("esrtd",,"NG 49!","Delivery") -> Dec'18 | B53: =RTD("esrtd",,"NG 48!:49!","Market") -> -0.175 | C53: -0.175 | E53: 4.373 | F53: -0.015 | G53: =RTD("esrtd",,"NG 49!","Last") ->  | H53: =RTD("esrtd",,"NG 49!","Change") ->  | I53: =RTD("esrtd",,"NG 49!","PrevPrice") -> 4.388 | J53: =RTD("esrtd",,"NG 49!","NewSettlement") ->  | L53: =RTD("esrtd",,"NG 49!","Expiration") -> 2018-11-28T07:00:00
A54: =RTD("esrtd",,"NG 50!","Delivery") -> Jan'19 | B54: =RTD("esrtd",,"NG 49!:50!","Market") ->  | C54: -0.132 | E54: 4.505 | F54: -0.015 | G54: =RTD("esrtd",,"NG 50!","Last") ->  | H54: =RTD("esrtd",,"NG 50!","Change") ->  | I54: =RTD("esrtd",,"NG 50!","PrevPrice") -> 4.52 | J54: =RTD("esrtd",,"NG 50!","NewSettlement") ->  | L54: =RTD("esrtd",,"NG 50!","Expiration") -> 2018-12-27T07:00:00
A55: =RTD("esrtd",,"NG 51!","Delivery") -> Feb'19 | B55: =RTD("esrtd",,"NG 50!:51!","Market") ->  | C55: 0.022 | E55: 4.483 | F55: -0.015 | G55: =RTD("esrtd",,"NG 51!","Last") ->  | H55: =RTD("esrtd",,"NG 51!","Change") ->  | I55: =RTD("esrtd",,"NG 51!","PrevPrice") -> 4.498 | J55: =RTD("esrtd",,"NG 51!","NewSettlement") ->  | L55: =RTD("esrtd",,"NG 51!","Expiration") -> 2019-01-29T07:00:00
A56: =RTD("esrtd",,"NG 52!","Delivery") -> Mar'19 | B56: =RTD("esrtd",,"NG 51!:52!","Market") ->  | C56: 0.062 | E56: 4.421 | F56: -0.015 | G56: =RTD("esrtd",,"NG 52!","Last") ->  | H56: =RTD("esrtd",,"NG 52!","Change") ->  | I56: =RTD("esrtd",,"NG 52!","PrevPrice") -> 4.436 | J56: =RTD("esrtd",,"NG 52!","NewSettlement") ->  | L56: =RTD("esrtd",,"NG 52!","Expiration") -> 2019-02-26T07:00:00
A57: =RTD("esrtd",,"NG 53!","Delivery") -> Apr'19 | B57: =RTD("esrtd",,"NG 52!:53!","Market") ->  | C57: 0.28 | E57: 4.141 | F57: -0.015 | G57: =RTD("esrtd",,"NG 53!","Last") ->  | H57: =RTD("esrtd",,"NG 53!","Change") ->  | I57: =RTD("esrtd",,"NG 53!","PrevPrice") -> 4.156 | J57: =RTD("esrtd",,"NG 53!","NewSettlement") ->  | L57: =RTD("esrtd",,"NG 53!","Expiration") -> 2019-03-27T08:00:00
A58: =RTD("esrtd",,"NG 54!","Delivery") -> May'19 | B58: =RTD("esrtd",,"NG 53!:54!","Market") ->  | C58: -0.01 | E58: 4.151 | F58: -0.015 | G58: =RTD("esrtd",,"NG 54!","Last") ->  | H58: =RTD("esrtd",,"NG 54!","Change") ->  | I58: =RTD("esrtd",,"NG 54!","PrevPrice") -> 4.166 | J58: =RTD("esrtd",,"NG 54!","NewSettlement") ->  | L58: =RTD("esrtd",,"NG 54!","Expiration") -> 2019-04-26T08:00:00
A59: =RTD("esrtd",,"NG 55!","Delivery") -> Jun'19 | B59: =RTD("esrtd",,"NG 54!:55!","Market") ->  | C59: -0.028 | E59: 4.179 | F59: -0.015 | G59: =RTD("esrtd",,"NG 55!","Last") ->  | H59: =RTD("esrtd",,"NG 55!","Change") ->  | I59: =RTD("esrtd",,"NG 55!","PrevPrice") -> 4.194 | J59: =RTD("esrtd",,"NG 55!","NewSettlement") ->  | L59: =RTD("esrtd",,"NG 55!","Expiration") -> 2019-05-29T08:00:00
A60: =RTD("esrtd",,"NG 56!","Delivery") -> Jul'19 | B60: =RTD("esrtd",,"NG 55!:56!","Market") ->  | C60: -0.031 | E60: 4.21 | F60: -0.015 | G60: =RTD("esrtd",,"NG 56!","Last") ->  | H60: =RTD("esrtd",,"NG 56!","Change") ->  | I60: =RTD("esrtd",,"NG 56!","PrevPrice") -> 4.225 | J60: =RTD("esrtd",,"NG 56!","NewSettlement") ->  | L60: =RTD("esrtd",,"NG 56!","Expiration") -> 2019-06-26T08:00:00
A61: =RTD("esrtd",,"NG 57!","Delivery") -> Aug'19 | B61: =RTD("esrtd",,"NG 56!:57!","Market") ->  | C61: -0.014 | E61: 4.224 | F61: -0.015 | G61: =RTD("esrtd",,"NG 57!","Last") ->  | H61: =RTD("esrtd",,"NG 57!","Change") ->  | I61: =RTD("esrtd",,"NG 57!","PrevPrice") -> 4.239 | J61: =RTD("esrtd",,"NG 57!","NewSettlement") ->  | L61: =RTD("esrtd",,"NG 57!","Expiration") -> 2019-07-29T08:00:00
A62: =RTD("esrtd",,"NG 58!","Delivery") -> Sep'19 | B62: =RTD("esrtd",,"NG 57!:58!","Market") ->  | C62: 0.006 | E62: 4.218 | F62: -0.015 | G62: =RTD("esrtd",,"NG 58!","Last") ->  | H62: =RTD("esrtd",,"NG 58!","Change") ->  | I62: =RTD("esrtd",,"NG 58!","PrevPrice") -> 4.233 | J62: =RTD("esrtd",,"NG 58!","NewSettlement") ->  | L62: =RTD("esrtd",,"NG 58!","Expiration") -> 2019-08-28T08:00:00
A63: =RTD("esrtd",,"NG 59!","Delivery") -> Oct'19 | B63: =RTD("esrtd",,"NG 58!:59!","Market") ->  | C63: -0.026 | E63: 4.244 | F63: -0.015 | G63: =RTD("esrtd",,"NG 59!","Last") ->  | H63: =RTD("esrtd",,"NG 59!","Change") ->  | I63: =RTD("esrtd",,"NG 59!","PrevPrice") -> 4.259 | J63: =RTD("esrtd",,"NG 59!","NewSettlement") ->  | L63: =RTD("esrtd",,"NG 59!","Expiration") -> 2019-09-26T08:00:00
A64: =RTD("esrtd",,"NG 60!","Delivery") -> Nov'19 | B64: =RTD("esrtd",,"NG 59!:60!","Market") ->  | C64: -0.09 | E64: 4.334 | F64: -0.015 | G64: =RTD("esrtd",,"NG 60!","Last") ->  | H64: =RTD("esrtd",,"NG 60!","Change") ->  | I64: =RTD("esrtd",,"NG 60!","PrevPrice") -> 4.349 | J64: =RTD("esrtd",,"NG 60!","NewSettlement") ->  | L64: =RTD("esrtd",,"NG 60!","Expiration") -> 2019-10-29T08:00:00
A65: =RTD("esrtd",,"NG 61!","Delivery") -> Dec'19 | B65: =RTD("esrtd",,"NG 60!:61!","Market") ->  | C65: -0.185 | E65: 4.519 | F65: -0.015 | G65: =RTD("esrtd",,"NG 61!","Last") ->  | H65: =RTD("esrtd",,"NG 61!","Change") ->  | I65: =RTD("esrtd",,"NG 61!","PrevPrice") -> 4.534 | J65: =RTD("esrtd",,"NG 61!","NewSettlement") ->  | L65: =RTD("esrtd",,"NG 61!","Expiration") -> 2019-11-26T07:00:00
A66: =RTD("esrtd",,"NG 62!","Delivery") -> Jan'20 | B66: =RTD("esrtd",,"NG 61!:62!","Market") ->  | C66: -0.13 | E66: 4.649 | F66: -0.015 | G66: =RTD("esrtd",,"NG 62!","Last") ->  | H66: =RTD("esrtd",,"NG 62!","Change") ->  | I66: =RTD("esrtd",,"NG 62!","PrevPrice") -> 4.664 | J66: =RTD("esrtd",,"NG 62!","NewSettlement") ->  | L66: =RTD("esrtd",,"NG 62!","Expiration") -> 2019-12-27T07:00:00
A67: =RTD("esrtd",,"NG 63!","Delivery") -> Feb'20 | B67: =RTD("esrtd",,"NG 62!:63!","Market") ->  | C67: 0.023 | E67: 4.626 | F67: -0.015 | G67: =RTD("esrtd",,"NG 63!","Last") ->  | H67: =RTD("esrtd",,"NG 63!","Change") ->  | I67: =RTD("esrtd",,"NG 63!","PrevPrice") -> 4.641 | J67: =RTD("esrtd",,"NG 63!","NewSettlement") ->  | L67: =RTD("esrtd",,"NG 63!","Expiration") -> 2020-01-29T07:00:00
A68: =RTD("esrtd",,"NG 64!","Delivery") -> Mar'20 | B68: =RTD("esrtd",,"NG 63!:64!","Market") ->  | C68: 0.063 | E68: 4.563 | F68: -0.015 | G68: =RTD("esrtd",,"NG 64!","Last") ->  | H68: =RTD("esrtd",,"NG 64!","Change") ->  | I68: =RTD("esrtd",,"NG 64!","PrevPrice") -> 4.578 | J68: =RTD("esrtd",,"NG 64!","NewSettlement") ->  | L68: =RTD("esrtd",,"NG 64!","Expiration") -> 2020-02-26T07:00:00
A69: =RTD("esrtd",,"NG 65!","Delivery") -> Apr'20 | B69: =RTD("esrtd",,"NG 64!:65!","Market") ->  | C69: 0.29 | E69: 4.273 | F69: -0.015 | G69: =RTD("esrtd",,"NG 65!","Last") ->  | H69: =RTD("esrtd",,"NG 65!","Change") ->  | I69: =RTD("esrtd",,"NG 65!","PrevPrice") -> 4.288 | J69: =RTD("esrtd",,"NG 65!","NewSettlement") ->  | L69: =RTD("esrtd",,"NG 65!","Expiration") -> 2020-03-27T08:00:00
A70: =RTD("esrtd",,"NG 66!","Delivery") -> May'20 | B70: =RTD("esrtd",,"NG 65!:66!","Market") ->  | C70: -0.013 | E70: 4.286 | F70: =IF(AND(E70<>"",I70<>""),E70-I70,"") -> -0.015 | G70: =RTD("esrtd",,"NG 66!","Last") ->  | H70: =RTD("esrtd",,"NG 66!","Change") ->  | I70: =RTD("esrtd",,"NG 66!","PrevPrice") -> 4.301 | J70: =RTD("esrtd",,"NG 66!","NewSettlement") ->  | K70: =IF(AND(I70<>"",J70<>""),J70-I70,"") ->  | L70: =RTD("esrtd",,"NG 66!","Expiration") -> 2020-04-28T08:00:00
A71: =RTD("esrtd",,"NG 67!","Delivery") -> Jun'20 | B71: =RTD("esrtd",,"NG 66!:67!","Market") ->  | C71: -0.025 | E71: 4.311 | F71: -0.015 | G71: =RTD("esrtd",,"NG 67!","Last") ->  | H71: =RTD("esrtd",,"NG 67!","Change") ->  | I71: =RTD("esrtd",,"NG 67!","PrevPrice") -> 4.326 | J71: =RTD("esrtd",,"NG 67!","NewSettlement") ->  | L71: =RTD("esrtd",,"NG 67!","Expiration") -> 2020-05-27T08:00:00
A72: =RTD("esrtd",,"NG 68!","Delivery") -> Jul'20 | B72: =RTD("esrtd",,"NG 67!:68!","Market") ->  | C72: =I71-I72 -> -0.028 | E72: 4.339 | F72: -0.015 | G72: =RTD("esrtd",,"NG 68!","Last") ->  | H72: =RTD("esrtd",,"NG 68!","Change") ->  | I72: =RTD("esrtd",,"NG 68!","PrevPrice") -> 4.354 | J72: =RTD("esrtd",,"NG 68!","NewSettlement") ->  | L72: =RTD("esrtd",,"NG 68!","Expiration") -> 2020-06-26T08:00:00
A73: =RTD("esrtd",,"NG 69!","Delivery") -> Aug'20 | B73: =RTD("esrtd",,"NG 68!:69!","Market") ->  | C73: -0.022 | E73: 4.361 | F73: -0.015 | G73: =RTD("esrtd",,"NG 69!","Last") ->  | H73: =RTD("esrtd",,"NG 69!","Change") ->  | I73: =RTD("esrtd",,"NG 69!","PrevPrice") -> 4.376 | J73: =RTD("esrtd",,"NG 69!","NewSettlement") ->  | L73: =RTD("esrtd",,"NG 69!","Expiration") -> 2020-07-29T08:00:00
A74: =RTD("esrtd",,"NG 70!","Delivery") -> Sep'20 | B74: =RTD("esrtd",,"NG 69!:70!","Market") ->  | C74: 0.006 | E74: =IF(D74<>"",E73-D74,IF(B74<>"",E73-B74,E73-C74)) -> 4.355 | F74: -0.015 | G74: =RTD("esrtd",,"NG 70!","Last") ->  | H74: =RTD("esrtd",,"NG 70!","Change") ->  | I74: =RTD("esrtd",,"NG 70!","PrevPrice") -> 4.37 | J74: =RTD("esrtd",,"NG 70!","NewSettlement") ->  | L74: =RTD("esrtd",,"NG 70!","Expiration") -> 2020-08-27T08:00:00
A75: =RTD("esrtd",,"NG 71!","Delivery") -> Oct'20 | B75: =RTD("esrtd",,"NG 70!:71!","Market") ->  | C75: -0.028 | E75: 4.383 | F75: -0.015 | G75: =RTD("esrtd",,"NG 71!","Last") ->  | H75: =RTD("esrtd",,"NG 71!","Change") ->  | I75: =RTD("esrtd",,"NG 71!","PrevPrice") -> 4.398 | J75: =RTD("esrtd",,"NG 71!","NewSettlement") ->  | L75: =RTD("esrtd",,"NG 71!","Expiration") -> 2020-09-28T08:00:00
A76: =RTD("esrtd",,"NG 72!","Delivery") -> Nov'20 | B76: =RTD("esrtd",,"NG 71!:72!","Market") ->  | C76: -0.09 | E76: 4.473 | F76: -0.015 | G76: =RTD("esrtd",,"NG 72!","Last") ->  | H76: =RTD("esrtd",,"NG 72!","Change") ->  | I76: =RTD("esrtd",,"NG 72!","PrevPrice") -> 4.488 | J76: =RTD("esrtd",,"NG 72!","NewSettlement") ->  | L76: =RTD("esrtd",,"NG 72!","Expiration") -> 2020-10-28T08:00:00
A77: =RTD("esrtd",,"NG 73!","Delivery") -> Dec'20 | B77: =RTD("esrtd",,"NG 72!:73!","Market") ->  | C77: -0.185 | E77: 4.658 | F77: -0.015 | G77: =RTD("esrtd",,"NG 73!","Last") ->  | H77: =RTD("esrtd",,"NG 73!","Change") ->  | I77: =RTD("esrtd",,"NG 73!","PrevPrice") -> 4.673 | J77: =RTD("esrtd",,"NG 73!","NewSettlement") ->  | L77: =RTD("esrtd",,"NG 73!","Expiration") -> 2020-11-25T07:00:00
A78: =RTD("esrtd",,"NG 74!","Delivery") -> Jan'21 | B78: =RTD("esrtd",,"NG 73!:74!","Market") ->  | C78: -0.105 | E78: 4.763 | F78: -0.015 | G78: =RTD("esrtd",,"NG 74!","Last") ->  | H78: =RTD("esrtd",,"NG 74!","Change") ->  | I78: =RTD("esrtd",,"NG 74!","PrevPrice") -> 4.778 | J78: =RTD("esrtd",,"NG 74!","NewSettlement") ->  | L78: =RTD("esrtd",,"NG 74!","Expiration") -> 2020-12-29T07:00:00
A79: =RTD("esrtd",,"NG 75!","Delivery") -> Feb'21 | B79: =RTD("esrtd",,"NG 74!:75!","Market") ->  | C79: 0.025 | E79: 4.738 | F79: -0.015 | G79: =RTD("esrtd",,"NG 75!","Last") ->  | H79: =RTD("esrtd",,"NG 75!","Change") ->  | I79: =RTD("esrtd",,"NG 75!","PrevPrice") -> 4.753 | J79: =RTD("esrtd",,"NG 75!","NewSettlement") ->  | L79: =RTD("esrtd",,"NG 75!","Expiration") -> 2021-01-27T07:00:00
A80: =RTD("esrtd",,"NG 76!","Delivery") -> Mar'21 | B80: =RTD("esrtd",,"NG 75!:76!","Market") ->  | C80: 0.068 | E80: 4.67 | F80: -0.015 | G80: =RTD("esrtd",,"NG 76!","Last") ->  | H80: =RTD("esrtd",,"NG 76!","Change") ->  | I80: =RTD("esrtd",,"NG 76!","PrevPrice") -> 4.685 | J80: =RTD("esrtd",,"NG 76!","NewSettlement") ->  | L80: =RTD("esrtd",,"NG 76!","Expiration") -> 2021-02-24T07:00:00
A81: =RTD("esrtd",,"NG 77!","Delivery") -> Apr'21 | B81: =RTD("esrtd",,"NG 76!:77!","Market") ->  | C81: 0.325 | E81: 4.345 | F81: -0.015 | G81: =RTD("esrtd",,"NG 77!","Last") ->  | H81: =RTD("esrtd",,"NG 77!","Change") ->  | I81: =RTD("esrtd",,"NG 77!","PrevPrice") -> 4.36 | J81: =RTD("esrtd",,"NG 77!","NewSettlement") ->  | L81: =RTD("esrtd",,"NG 77!","Expiration") -> 2021-03-29T08:00:00
A82: =RTD("esrtd",,"NG 78!","Delivery") -> May'21 | B82: =RTD("esrtd",,"NG 77!:78!","Market") ->  | C82: -0.017 | E82: 4.362 | F82: -0.015 | G82: =RTD("esrtd",,"NG 78!","Last") ->  | H82: =RTD("esrtd",,"NG 78!","Change") ->  | I82: =RTD("esrtd",,"NG 78!","PrevPrice") -> 4.377 | J82: =RTD("esrtd",,"NG 78!","NewSettlement") ->  | L82: =RTD("esrtd",,"NG 78!","Expiration") -> 2021-04-28T08:00:00
A83: =RTD("esrtd",,"NG 79!","Delivery") -> Jun'21 | B83: =RTD("esrtd",,"NG 78!:79!","Market") ->  | C83: -0.03 | E83: 4.392 | F83: -0.015 | G83: =RTD("esrtd",,"NG 79!","Last") ->  | H83: =RTD("esrtd",,"NG 79!","Change") ->  | I83: =RTD("esrtd",,"NG 79!","PrevPrice") -> 4.407 | J83: =RTD("esrtd",,"NG 79!","NewSettlement") ->  | L83: =RTD("esrtd",,"NG 79!","Expiration") -> 2021-05-26T08:00:00
A84: =RTD("esrtd",,"NG 80!","Delivery") -> Jul'21 | B84: =RTD("esrtd",,"NG 79!:80!","Market") ->  | C84: -0.037 | E84: 4.429 | F84: -0.015 | G84: =RTD("esrtd",,"NG 80!","Last") ->  | H84: =RTD("esrtd",,"NG 80!","Change") ->  | I84: =RTD("esrtd",,"NG 80!","PrevPrice") -> 4.444 | J84: =RTD("esrtd",,"NG 80!","NewSettlement") ->  | L84: =RTD("esrtd",,"NG 80!","Expiration") -> 2021-06-28T08:00:00
A85: =RTD("esrtd",,"NG 81!","Delivery") -> Aug'21 | B85: =RTD("esrtd",,"NG 80!:81!","Market") ->  | C85: -0.03 | E85: 4.459 | F85: -0.015 | G85: =RTD("esrtd",,"NG 81!","Last") ->  | H85: =RTD("esrtd",,"NG 81!","Change") ->  | I85: =RTD("esrtd",,"NG 81!","PrevPrice") -> 4.474 | J85: =RTD("esrtd",,"NG 81!","NewSettlement") ->  | L85: =RTD("esrtd",,"NG 81!","Expiration") -> 2021-07-28T08:00:00
A86: =RTD("esrtd",,"NG 82!","Delivery") -> Sep'21 | B86: =RTD("esrtd",,"NG 81!:82!","Market") ->  | C86: 0.003 | E86: 4.456 | F86: -0.015 | G86: =RTD("esrtd",,"NG 82!","Last") ->  | H86: =RTD("esrtd",,"NG 82!","Change") ->  | I86: =RTD("esrtd",,"NG 82!","PrevPrice") -> 4.471 | J86: =RTD("esrtd",,"NG 82!","NewSettlement") ->  | L86: =RTD("esrtd",,"NG 82!","Expiration") -> 2021-08-27T08:00:00
A87: =RTD("esrtd",,"NG 83!","Delivery") -> Oct'21 | B87: =RTD("esrtd",,"NG 82!:83!","Market") ->  | C87: -0.035 | E87: 4.491 | F87: -0.015 | G87: =RTD("esrtd",,"NG 83!","Last") ->  | H87: =RTD("esrtd",,"NG 83!","Change") ->  | I87: =RTD("esrtd",,"NG 83!","PrevPrice") -> 4.506 | J87: =RTD("esrtd",,"NG 83!","NewSettlement") ->  | L87: =RTD("esrtd",,"NG 83!","Expiration") -> 2021-09-28T08:00:00
A88: =RTD("esrtd",,"NG 84!","Delivery") -> Nov'21 | B88: =RTD("esrtd",,"NG 83!:84!","Market") ->  | C88: -0.09 | E88: 4.581 | F88: -0.015 | G88: =RTD("esrtd",,"NG 84!","Last") ->  | H88: =RTD("esrtd",,"NG 84!","Change") ->  | I88: =RTD("esrtd",,"NG 84!","PrevPrice") -> 4.596 | J88: =RTD("esrtd",,"NG 84!","NewSettlement") ->  | L88: =RTD("esrtd",,"NG 84!","Expiration") -> 2021-10-27T08:00:00
A89: =RTD("esrtd",,"NG 85!","Delivery") -> Dec'21 | B89: =RTD("esrtd",,"NG 84!:85!","Market") ->  | C89: -0.188 | E89: 4.769 | F89: -0.015 | G89: =RTD("esrtd",,"NG 85!","Last") ->  | H89: =RTD("esrtd",,"NG 85!","Change") ->  | I89: =RTD("esrtd",,"NG 85!","PrevPrice") -> 4.784 | J89: =RTD("esrtd",,"NG 85!","NewSettlement") ->  | L89: =RTD("esrtd",,"NG 85!","Expiration") -> 2021-11-26T07:00:00
A90: =RTD("esrtd",,"NG 86!","Delivery") -> Jan'22 | B90: =RTD("esrtd",,"NG 85!:86!","Market") ->  | C90: -0.1 | E90: 4.869 | F90: -0.015 | G90: =RTD("esrtd",,"NG 86!","Last") ->  | H90: =RTD("esrtd",,"NG 86!","Change") ->  | I90: =RTD("esrtd",,"NG 86!","PrevPrice") -> 4.884 | J90: =RTD("esrtd",,"NG 86!","NewSettlement") ->  | L90: =RTD("esrtd",,"NG 86!","Expiration") -> 2021-12-29T07:00:00
A91: =RTD("esrtd",,"NG 87!","Delivery") -> Feb'22 | B91: =RTD("esrtd",,"NG 86!:87!","Market") ->  | C91: 0.025 | E91: 4.844 | F91: -0.015 | G91: =RTD("esrtd",,"NG 87!","Last") ->  | H91: =RTD("esrtd",,"NG 87!","Change") ->  | I91: =RTD("esrtd",,"NG 87!","PrevPrice") -> 4.859 | J91: =RTD("esrtd",,"NG 87!","NewSettlement") ->  | L91: =RTD("esrtd",,"NG 87!","Expiration") -> 2022-01-27T07:00:00
A92: =RTD("esrtd",,"NG 88!","Delivery") -> Mar'22 | B92: =RTD("esrtd",,"NG 87!:88!","Market") ->  | C92: 0.07 | E92: 4.774 | F92: -0.015 | G92: =RTD("esrtd",,"NG 88!","Last") ->  | H92: =RTD("esrtd",,"NG 88!","Change") ->  | I92: =RTD("esrtd",,"NG 88!","PrevPrice") -> 4.789 | J92: =RTD("esrtd",,"NG 88!","NewSettlement") ->  | L92: =RTD("esrtd",,"NG 88!","Expiration") -> 2022-02-24T07:00:00
A93: =RTD("esrtd",,"NG 89!","Delivery") -> Apr'22 | B93: =RTD("esrtd",,"NG 88!:89!","Market") ->  | C93: 0.34 | E93: 4.434 | F93: -0.015 | G93: =RTD("esrtd",,"NG 89!","Last") ->  | H93: =RTD("esrtd",,"NG 89!","Change") ->  | I93: =RTD("esrtd",,"NG 89!","PrevPrice") -> 4.449 | J93: =RTD("esrtd",,"NG 89!","NewSettlement") ->  | L93: =RTD("esrtd",,"NG 89!","Expiration") -> 2022-03-29T08:00:00
A94: =RTD("esrtd",,"NG 90!","Delivery") -> May'22 | B94: =RTD("esrtd",,"NG 89!:90!","Market") ->  | C94: 0.008 | E94: 4.426 | F94: -0.015 | G94: =RTD("esrtd",,"NG 90!","Last") ->  | H94: =RTD("esrtd",,"NG 90!","Change") ->  | I94: =RTD("esrtd",,"NG 90!","PrevPrice") -> 4.441 | J94: =RTD("esrtd",,"NG 90!","NewSettlement") ->  | L94: =RTD("esrtd",,"NG 90!","Expiration") -> 2022-04-27T08:00:00
A95: =RTD("esrtd",,"NG 91!","Delivery") -> Jun'22 | B95: =RTD("esrtd",,"NG 90!:91!","Market") ->  | C95: -0.03 | E95: 4.456 | F95: -0.015 | G95: =RTD("esrtd",,"NG 91!","Last") ->  | H95: =RTD("esrtd",,"NG 91!","Change") ->  | I95: =RTD("esrtd",,"NG 91!","PrevPrice") -> 4.471 | J95: =RTD("esrtd",,"NG 91!","NewSettlement") ->  | L95: =RTD("esrtd",,"NG 91!","Expiration") -> 2022-05-26T08:00:00
A96: =RTD("esrtd",,"NG 92!","Delivery") -> Jul'22 | B96: =RTD("esrtd",,"NG 91!:92!","Market") ->  | C96: -0.038 | E96: 4.494 | F96: -0.015 | G96: =RTD("esrtd",,"NG 92!","Last") ->  | H96: =RTD("esrtd",,"NG 92!","Change") ->  | I96: =RTD("esrtd",,"NG 92!","PrevPrice") -> 4.509 | J96: =RTD("esrtd",,"NG 92!","NewSettlement") ->  | L96: =RTD("esrtd",,"NG 92!","Expiration") -> 2022-06-28T08:00:00
A97: =RTD("esrtd",,"NG 93!","Delivery") -> Aug'22 | B97: =RTD("esrtd",,"NG 92!:93!","Market") ->  | C97: -0.038 | E97: 4.532 | F97: -0.015 | G97: =RTD("esrtd",,"NG 93!","Last") ->  | H97: =RTD("esrtd",,"NG 93!","Change") ->  | I97: =RTD("esrtd",,"NG 93!","PrevPrice") -> 4.547 | J97: =RTD("esrtd",,"NG 93!","NewSettlement") ->  | L97: =RTD("esrtd",,"NG 93!","Expiration") -> 2022-07-27T08:00:00
A98: =RTD("esrtd",,"NG 94!","Delivery") -> Sep'22 | B98: =RTD("esrtd",,"NG 93!:94!","Market") ->  | C98: -0.006 | E98: 4.538 | F98: -0.015 | G98: =RTD("esrtd",,"NG 94!","Last") ->  | H98: =RTD("esrtd",,"NG 94!","Change") ->  | I98: =RTD("esrtd",,"NG 94!","PrevPrice") -> 4.553 | J98: =RTD("esrtd",,"NG 94!","NewSettlement") ->  | L98: =RTD("esrtd",,"NG 94!","Expiration") -> 2022-08-29T08:00:00
A99: =RTD("esrtd",,"NG 95!","Delivery") -> Oct'22 | B99: =RTD("esrtd",,"NG 94!:95!","Market") ->  | C99: -0.045 | E99: 4.583 | F99: -0.015 | G99: =RTD("esrtd",,"NG 95!","Last") ->  | H99: =RTD("esrtd",,"NG 95!","Change") ->  | I99: =RTD("esrtd",,"NG 95!","PrevPrice") -> 4.598 | J99: =RTD("esrtd",,"NG 95!","NewSettlement") ->  | L99: =RTD("esrtd",,"NG 95!","Expiration") -> 2022-09-28T08:00:00
A100: =RTD("esrtd",,"NG 96!","Delivery") -> Nov'22 | B100: =RTD("esrtd",,"NG 95!:96!","Market") ->  | C100: -0.088 | E100: 4.671 | F100: -0.015 | G100: =RTD("esrtd",,"NG 96!","Last") ->  | H100: =RTD("esrtd",,"NG 96!","Change") ->  | I100: =RTD("esrtd",,"NG 96!","PrevPrice") -> 4.686 | J100: =RTD("esrtd",,"NG 96!","NewSettlement") ->  | L100: =RTD("esrtd",,"NG 96!","Expiration") -> 2022-10-27T08:00:00
A101: =RTD("esrtd",,"NG 97!","Delivery") -> Dec'22 | B101: =RTD("esrtd",,"NG 96!:97!","Market") ->  | C101: -0.19 | E101: 4.861 | F101: -0.015 | G101: =RTD("esrtd",,"NG 97!","Last") ->  | H101: =RTD("esrtd",,"NG 97!","Change") ->  | I101: =RTD("esrtd",,"NG 97!","PrevPrice") -> 4.876 | J101: =RTD("esrtd",,"NG 97!","NewSettlement") ->  | L101: =RTD("esrtd",,"NG 97!","Expiration") -> 2022-11-28T07:00:00
A102: =RTD("esrtd",,"NG 98!","Delivery") -> Jan'23 | B102: =RTD("esrtd",,"NG 97!:98!","Market") ->  | C102: -0.1 | E102: 4.961 | F102: -0.015 | G102: =RTD("esrtd",,"NG 98!","Last") ->  | H102: =RTD("esrtd",,"NG 98!","Change") ->  | I102: =RTD("esrtd",,"NG 98!","PrevPrice") -> 4.976 | J102: =RTD("esrtd",,"NG 98!","NewSettlement") ->  | L102: =RTD("esrtd",,"NG 98!","Expiration") -> 2022-12-28T07:00:00
A103: =RTD("esrtd",,"NG 99!","Delivery") -> Feb'23 | B103: =RTD("esrtd",,"NG 98!:99!","Market") ->  | C103: 0.03 | E103: 4.931 | F103: -0.015 | G103: =RTD("esrtd",,"NG 99!","Last") ->  | H103: =RTD("esrtd",,"NG 99!","Change") ->  | I103: =RTD("esrtd",,"NG 99!","PrevPrice") -> 4.946 | J103: =RTD("esrtd",,"NG 99!","NewSettlement") ->  | L103: =RTD("esrtd",,"NG 99!","Expiration") -> 2023-01-27T07:00:00
A104: =RTD("esrtd",,"NG 100!","Delivery") -> Mar'23 | B104: =RTD("esrtd",,"NG 99!:100!","Market") ->  | C104: 0.08 | E104: 4.851 | F104: -0.015 | G104: =RTD("esrtd",,"NG 100!","Last") ->  | H104: =RTD("esrtd",,"NG 100!","Change") ->  | I104: =RTD("esrtd",,"NG 100!","PrevPrice") -> 4.866 | J104: =RTD("esrtd",,"NG 100!","NewSettlement") ->  | L104: =RTD("esrtd",,"NG 100!","Expiration") -> 2023-02-24T07:00:00
A105: =RTD("esrtd",,"NG 101!","Delivery") -> Apr'23 | B105: =RTD("esrtd",,"NG 100!:101!","Market") ->  | C105: 0.35 | E105: 4.501 | F105: -0.015 | G105: =RTD("esrtd",,"NG 101!","Last") ->  | H105: =RTD("esrtd",,"NG 101!","Change") ->  | I105: =RTD("esrtd",,"NG 101!","PrevPrice") -> 4.516 | J105: =RTD("esrtd",,"NG 101!","NewSettlement") ->  | L105: =RTD("esrtd",,"NG 101!","Expiration") -> 2023-03-29T08:00:00
A106: =RTD("esrtd",,"NG 102!","Delivery") -> May'23 | B106: =RTD("esrtd",,"NG 101!:102!","Market") ->  | C106: 0.012 | E106: 4.489 | F106: -0.015 | G106: =RTD("esrtd",,"NG 102!","Last") ->  | H106: =RTD("esrtd",,"NG 102!","Change") ->  | I106: =RTD("esrtd",,"NG 102!","PrevPrice") -> 4.504 | J106: =RTD("esrtd",,"NG 102!","NewSettlement") ->  | L106: =RTD("esrtd",,"NG 102!","Expiration") -> 2023-04-26T08:00:00
A107: =RTD("esrtd",,"NG 103!","Delivery") -> Jun'23 | B107: =RTD("esrtd",,"NG 102!:103!","Market") ->  | C107: -0.03 | E107: 4.519 | F107: -0.015 | G107: =RTD("esrtd",,"NG 103!","Last") ->  | H107: =RTD("esrtd",,"NG 103!","Change") ->  | I107: =RTD("esrtd",,"NG 103!","PrevPrice") -> 4.534 | J107: =RTD("esrtd",,"NG 103!","NewSettlement") ->  | L107: =RTD("esrtd",,"NG 103!","Expiration") -> 2023-05-29T08:00:00
A108: =RTD("esrtd",,"NG 104!","Delivery") -> Jul'23 | B108: =RTD("esrtd",,"NG 103!:104!","Market") ->  | C108: -0.041 | E108: 4.56 | F108: -0.015 | G108: =RTD("esrtd",,"NG 104!","Last") ->  | H108: =RTD("esrtd",,"NG 104!","Change") ->  | I108: =RTD("esrtd",,"NG 104!","PrevPrice") -> 4.575 | J108: =RTD("esrtd",,"NG 104!","NewSettlement") ->  | L108: =RTD("esrtd",,"NG 104!","Expiration") -> 2023-06-28T08:00:00
A109: =RTD("esrtd",,"NG 105!","Delivery") -> Aug'23 | B109: =RTD("esrtd",,"NG 104!:105!","Market") ->  | C109: -0.039 | E109: 4.599 | F109: -0.015 | G109: =RTD("esrtd",,"NG 105!","Last") ->  | H109: =RTD("esrtd",,"NG 105!","Change") ->  | I109: =RTD("esrtd",,"NG 105!","PrevPrice") -> 4.614 | J109: =RTD("esrtd",,"NG 105!","NewSettlement") ->  | L109: =RTD("esrtd",,"NG 105!","Expiration") -> 2023-07-27T08:00:00
A110: =RTD("esrtd",,"NG 106!","Delivery") -> Sep'23 | B110: =RTD("esrtd",,"NG 105!:106!","Market") ->  | C110: -0.01 | E110: 4.609 | F110: -0.015 | G110: =RTD("esrtd",,"NG 106!","Last") ->  | H110: =RTD("esrtd",,"NG 106!","Change") ->  | I110: =RTD("esrtd",,"NG 106!","PrevPrice") -> 4.624 | J110: =RTD("esrtd",,"NG 106!","NewSettlement") ->  | L110: =RTD("esrtd",,"NG 106!","Expiration") -> 2023-08-29T08:00:00
A111: =RTD("esrtd",,"NG 107!","Delivery") -> Oct'23 | B111: =RTD("esrtd",,"NG 106!:107!","Market") ->  | C111: -0.052 | E111: 4.661 | F111: -0.015 | G111: =RTD("esrtd",,"NG 107!","Last") ->  | H111: =RTD("esrtd",,"NG 107!","Change") ->  | I111: =RTD("esrtd",,"NG 107!","PrevPrice") -> 4.676 | J111: =RTD("esrtd",,"NG 107!","NewSettlement") ->  | L111: =RTD("esrtd",,"NG 107!","Expiration") -> 2023-09-27T08:00:00
A112: =RTD("esrtd",,"NG 108!","Delivery") -> Nov'23 | B112: =RTD("esrtd",,"NG 107!:108!","Market") ->  | C112: -0.09 | E112: 4.751 | F112: -0.015 | G112: =RTD("esrtd",,"NG 108!","Last") ->  | H112: =RTD("esrtd",,"NG 108!","Change") ->  | I112: =RTD("esrtd",,"NG 108!","PrevPrice") -> 4.766 | J112: =RTD("esrtd",,"NG 108!","NewSettlement") ->  | L112: =RTD("esrtd",,"NG 108!","Expiration") -> 2023-10-27T08:00:00
A113: =RTD("esrtd",,"NG 109!","Delivery") -> Dec'23 | B113: =RTD("esrtd",,"NG 108!:109!","Market") ->  | C113: -0.19 | E113: 4.941 | F113: -0.015 | G113: =RTD("esrtd",,"NG 109!","Last") ->  | H113: =RTD("esrtd",,"NG 109!","Change") ->  | I113: =RTD("esrtd",,"NG 109!","PrevPrice") -> 4.956 | J113: =RTD("esrtd",,"NG 109!","NewSettlement") ->  | L113: =RTD("esrtd",,"NG 109!","Expiration") -> 2023-11-28T07:00:00
A114: =RTD("esrtd",,"NG 110!","Delivery") -> Jan'24 | B114: =RTD("esrtd",,"NG 109!:110!","Market") ->  | C114: -0.095 | E114: 5.036 | F114: -0.015 | G114: =RTD("esrtd",,"NG 110!","Last") ->  | H114: =RTD("esrtd",,"NG 110!","Change") ->  | I114: =RTD("esrtd",,"NG 110!","PrevPrice") -> 5.051 | J114: =RTD("esrtd",,"NG 110!","NewSettlement") ->  | L114: =RTD("esrtd",,"NG 110!","Expiration") -> 2023-12-27T07:00:00
A115: =RTD("esrtd",,"NG 111!","Delivery") -> Feb'24 | B115: =RTD("esrtd",,"NG 110!:111!","Market") ->  | C115: 0.031 | E115: 5.005 | F115: -0.015 | G115: =RTD("esrtd",,"NG 111!","Last") ->  | H115: =RTD("esrtd",,"NG 111!","Change") ->  | I115: =RTD("esrtd",,"NG 111!","PrevPrice") -> 5.02 | J115: =RTD("esrtd",,"NG 111!","NewSettlement") ->  | L115: =RTD("esrtd",,"NG 111!","Expiration") -> 2024-01-29T07:00:00
A116: =RTD("esrtd",,"NG 112!","Delivery") -> Mar'24 | B116: =RTD("esrtd",,"NG 111!:112!","Market") ->  | C116: 0.082 | E116: 4.923 | F116: -0.015 | G116: =RTD("esrtd",,"NG 112!","Last") ->  | H116: =RTD("esrtd",,"NG 112!","Change") ->  | I116: =RTD("esrtd",,"NG 112!","PrevPrice") -> 4.938 | J116: =RTD("esrtd",,"NG 112!","NewSettlement") ->  | L116: =RTD("esrtd",,"NG 112!","Expiration") -> 2024-02-27T07:00:00
A117: =RTD("esrtd",,"NG 113!","Delivery") -> Apr'24 | B117: =RTD("esrtd",,"NG 112!:113!","Market") ->  | C117: 0.365 | E117: 4.558 | F117: -0.015 | G117: =RTD("esrtd",,"NG 113!","Last") ->  | H117: =RTD("esrtd",,"NG 113!","Change") ->  | I117: =RTD("esrtd",,"NG 113!","PrevPrice") -> 4.573 | J117: =RTD("esrtd",,"NG 113!","NewSettlement") ->  | L117: =RTD("esrtd",,"NG 113!","Expiration") -> 2024-03-27T08:00:00
A118: =RTD("esrtd",,"NG 114!","Delivery") -> May'24 | B118: =RTD("esrtd",,"NG 113!:114!","Market") ->  | C118: 0.015 | E118: 4.543 | F118: -0.015 | G118: =RTD("esrtd",,"NG 114!","Last") ->  | H118: =RTD("esrtd",,"NG 114!","Change") ->  | I118: =RTD("esrtd",,"NG 114!","PrevPrice") -> 4.558 | J118: =RTD("esrtd",,"NG 114!","NewSettlement") ->  | L118: =RTD("esrtd",,"NG 114!","Expiration") -> 2024-04-26T08:00:00
A119: =RTD("esrtd",,"NG 115!","Delivery") -> Jun'24 | B119: =RTD("esrtd",,"NG 114!:115!","Market") ->  | C119: -0.032 | E119: 4.575 | F119: -0.015 | G119: =RTD("esrtd",,"NG 115!","Last") ->  | H119: =RTD("esrtd",,"NG 115!","Change") ->  | I119: =RTD("esrtd",,"NG 115!","PrevPrice") -> 4.59 | J119: =RTD("esrtd",,"NG 115!","NewSettlement") ->  | L119: =RTD("esrtd",,"NG 115!","Expiration") -> 2024-05-29T08:00:00
A120: =RTD("esrtd",,"NG 116!","Delivery") -> Jul'24 | B120: =RTD("esrtd",,"NG 115!:116!","Market") ->  | C120: -0.045 | E120: 4.62 | F120: -0.015 | G120: =RTD("esrtd",,"NG 116!","Last") ->  | H120: =RTD("esrtd",,"NG 116!","Change") ->  | I120: =RTD("esrtd",,"NG 116!","PrevPrice") -> 4.635 | J120: =RTD("esrtd",,"NG 116!","NewSettlement") ->  | L120: =RTD("esrtd",,"NG 116!","Expiration") -> 2024-06-26T08:00:00
A121: =RTD("esrtd",,"NG 117!","Delivery") -> Aug'24 | B121: =RTD("esrtd",,"NG 116!:117!","Market") ->  | C121: -0.042 | E121: 4.662 | F121: -0.015 | G121: =RTD("esrtd",,"NG 117!","Last") ->  | H121: =RTD("esrtd",,"NG 117!","Change") ->  | I121: =RTD("esrtd",,"NG 117!","PrevPrice") -> 4.677 | J121: =RTD("esrtd",,"NG 117!","NewSettlement") ->  | L121: =RTD("esrtd",,"NG 117!","Expiration") -> 2024-07-29T08:00:00
A122: =RTD("esrtd",,"NG 118!","Delivery") -> Sep'24 | B122: =RTD("esrtd",,"NG 117!:118!","Market") ->  | C122: -0.013 | E122: 4.675 | F122: -0.015 | G122: =RTD("esrtd",,"NG 118!","Last") ->  | H122: =RTD("esrtd",,"NG 118!","Change") ->  | I122: =RTD("esrtd",,"NG 118!","PrevPrice") -> 4.69 | J122: =RTD("esrtd",,"NG 118!","NewSettlement") ->  | L122: =RTD("esrtd",,"NG 118!","Expiration") -> 2024-08-28T08:00:00
A123: =RTD("esrtd",,"NG 119!","Delivery") -> Oct'24 | B123: =RTD("esrtd",,"NG 118!:119!","Market") ->  | C123: -0.06 | E123: 4.735 | F123: -0.015 | G123: =RTD("esrtd",,"NG 119!","Last") ->  | H123: =RTD("esrtd",,"NG 119!","Change") ->  | I123: =RTD("esrtd",,"NG 119!","PrevPrice") -> 4.75 | J123: =RTD("esrtd",,"NG 119!","NewSettlement") ->  | L123: =RTD("esrtd",,"NG 119!","Expiration") -> 2024-09-26T08:00:00
A124: =RTD("esrtd",,"NG 120!","Delivery") -> Nov'24 | B124: =RTD("esrtd",,"NG 119!:120!","Market") ->  | C124: -0.09 | E124: 4.825 | F124: -0.015 | G124: =RTD("esrtd",,"NG 120!","Last") ->  | H124: =RTD("esrtd",,"NG 120!","Change") ->  | I124: =RTD("esrtd",,"NG 120!","PrevPrice") -> 4.84 | J124: =RTD("esrtd",,"NG 120!","NewSettlement") ->  | L124: =RTD("esrtd",,"NG 120!","Expiration") -> 2024-10-29T08:00:00
A125: =RTD("esrtd",,"NG 121!","Delivery") -> Dec'24 | B125: =RTD("esrtd",,"NG 120!:121!","Market") ->  | C125: -0.195 | E125: 5.02 | F125: -0.015 | G125: =RTD("esrtd",,"NG 121!","Last") ->  | H125: =RTD("esrtd",,"NG 121!","Change") ->  | I125: =RTD("esrtd",,"NG 121!","PrevPrice") -> 5.035 | J125: =RTD("esrtd",,"NG 121!","NewSettlement") ->  | L125: =RTD("esrtd",,"NG 121!","Expiration") -> 2024-11-27T07:00:00
A126: =RTD("esrtd",,"NG 122!","Delivery") -> Jan'25 | B126: =RTD("esrtd",,"NG 121!:122!","Market") ->  | C126: -0.095 | E126: 5.115 | F126: -0.015 | G126: =RTD("esrtd",,"NG 122!","Last") ->  | H126: =RTD("esrtd",,"NG 122!","Change") ->  | I126: =RTD("esrtd",,"NG 122!","PrevPrice") -> 5.13 | J126: =RTD("esrtd",,"NG 122!","NewSettlement") ->  | L126: =RTD("esrtd",,"NG 122!","Expiration") -> 2024-12-27T07:00:00
A127: =RTD("esrtd",,"NG 123!","Delivery") -> Feb'25 | B127: =RTD("esrtd",,"NG 122!:123!","Market") ->  | C127: 0.035 | E127: 5.08 | F127: -0.015 | G127: =RTD("esrtd",,"NG 123!","Last") ->  | H127: =RTD("esrtd",,"NG 123!","Change") ->  | I127: =RTD("esrtd",,"NG 123!","PrevPrice") -> 5.095 | J127: =RTD("esrtd",,"NG 123!","NewSettlement") ->  | L127: =RTD("esrtd",,"NG 123!","Expiration") -> 2025-01-29T07:00:00
A128: =RTD("esrtd",,"NG 124!","Delivery") -> Mar'25 | B128: =RTD("esrtd",,"NG 123!:124!","Market") ->  | C128: 0.085 | E128: 4.995 | F128: -0.015 | G128: =RTD("esrtd",,"NG 124!","Last") ->  | H128: =RTD("esrtd",,"NG 124!","Change") ->  | I128: =RTD("esrtd",,"NG 124!","PrevPrice") -> 5.01 | J128: =RTD("esrtd",,"NG 124!","NewSettlement") ->  | L128: =RTD("esrtd",,"NG 124!","Expiration") -> 2025-02-26T07:00:00
A129: =RTD("esrtd",,"NG 125!","Delivery") -> Apr'25 | B129: =RTD("esrtd",,"NG 124!:125!","Market") ->  | C129: 0.385 | E129: 4.61 | F129: -0.015 | G129: =RTD("esrtd",,"NG 125!","Last") ->  | H129: =RTD("esrtd",,"NG 125!","Change") ->  | I129: =RTD("esrtd",,"NG 125!","PrevPrice") -> 4.625 | J129: =RTD("esrtd",,"NG 125!","NewSettlement") ->  | L129: =RTD("esrtd",,"NG 125!","Expiration") -> 2025-03-27T08:00:00
A130: =RTD("esrtd",,"NG 126!","Delivery") -> May'25 | B130: =RTD("esrtd",,"NG 125!:126!","Market") ->  | C130: 0.015 | E130: 4.595 | F130: -0.015 | G130: =RTD("esrtd",,"NG 126!","Last") ->  | H130: =RTD("esrtd",,"NG 126!","Change") ->  | I130: =RTD("esrtd",,"NG 126!","PrevPrice") -> 4.61 | J130: =RTD("esrtd",,"NG 126!","NewSettlement") ->  | L130: =RTD("esrtd",,"NG 126!","Expiration") -> 2025-04-28T08:00:00
A131: =RTD("esrtd",,"NG 127!","Delivery") -> Jun'25 | B131: =RTD("esrtd",,"NG 126!:127!","Market") ->  | C131: -0.038 | E131: 4.633 | F131: -0.015 | G131: =RTD("esrtd",,"NG 127!","Last") ->  | H131: =RTD("esrtd",,"NG 127!","Change") ->  | I131: =RTD("esrtd",,"NG 127!","PrevPrice") -> 4.648 | J131: =RTD("esrtd",,"NG 127!","NewSettlement") ->  | L131: =RTD("esrtd",,"NG 127!","Expiration") -> 2025-05-28T08:00:00
A132: =RTD("esrtd",,"NG 128!","Delivery") -> Jul'25 | B132: =RTD("esrtd",,"NG 127!:128!","Market") ->  | C132: -0.048 | E132: 4.681 | F132: -0.015 | G132: =RTD("esrtd",,"NG 128!","Last") ->  | H132: =RTD("esrtd",,"NG 128!","Change") ->  | I132: =RTD("esrtd",,"NG 128!","PrevPrice") -> 4.696 | J132: =RTD("esrtd",,"NG 128!","NewSettlement") ->  | L132: =RTD("esrtd",,"NG 128!","Expiration") -> 2025-06-26T08:00:00
A133: =RTD("esrtd",,"NG 129!","Delivery") -> Aug'25 | B133: =RTD("esrtd",,"NG 128!:129!","Market") ->  | C133: -0.044 | E133: 4.725 | F133: -0.015 | G133: =RTD("esrtd",,"NG 129!","Last") ->  | H133: =RTD("esrtd",,"NG 129!","Change") ->  | I133: =RTD("esrtd",,"NG 129!","PrevPrice") -> 4.74 | J133: =RTD("esrtd",,"NG 129!","NewSettlement") ->  | L133: =RTD("esrtd",,"NG 129!","Expiration") -> 2025-07-29T08:00:00
A134: =RTD("esrtd",,"NG 130!","Delivery") -> Sep'25 | B134: =RTD("esrtd",,"NG 129!:130!","Market") ->  | C134: -0.015 | E134: 4.74 | F134: =IF(AND(E134<>"",I134<>""),E134-I134,"") -> -0.015 | G134: =RTD("esrtd",,"NG 130!","Last") ->  | H134: =RTD("esrtd",,"NG 130!","Change") ->  | I134: =RTD("esrtd",,"NG 130!","PrevPrice") -> 4.755 | J134: =RTD("esrtd",,"NG 130!","NewSettlement") ->  | K134: =IF(AND(I134<>"",J134<>""),J134-I134,"") ->  | L134: =RTD("esrtd",,"NG 130!","Expiration") -> 2025-08-27T08:00:00
A135: =RTD("esrtd",,"NG 131!","Delivery") -> Oct'25 | B135: =RTD("esrtd",,"NG 130!:131!","Market") ->  | C135: -0.062 | E135: 4.802 | F135: -0.015 | G135: =RTD("esrtd",,"NG 131!","Last") ->  | H135: =RTD("esrtd",,"NG 131!","Change") ->  | I135: =RTD("esrtd",,"NG 131!","PrevPrice") -> 4.817 | J135: =RTD("esrtd",,"NG 131!","NewSettlement") ->  | L135: =RTD("esrtd",,"NG 131!","Expiration") -> 2025-09-26T08:00:00
A136: =RTD("esrtd",,"NG 132!","Delivery") -> Nov'25 | B136: =RTD("esrtd",,"NG 131!:132!","Market") ->  | C136: =I135-I136 -> -0.105 | E136: 4.907 | F136: -0.015 | G136: =RTD("esrtd",,"NG 132!","Last") ->  | H136: =RTD("esrtd",,"NG 132!","Change") ->  | I136: =RTD("esrtd",,"NG 132!","PrevPrice") -> 4.922 | J136: =RTD("esrtd",,"NG 132!","NewSettlement") ->  | L136: =RTD("esrtd",,"NG 132!","Expiration") -> 2025-10-29T08:00:00
A137: =RTD("esrtd",,"NG 133!","Delivery") -> Dec'25 | B137: =RTD("esrtd",,"NG 132!:133!","Market") ->  | C137: -0.21 | E137: 5.117 | F137: -0.015 | G137: =RTD("esrtd",,"NG 133!","Last") ->  | H137: =RTD("esrtd",,"NG 133!","Change") ->  | I137: =RTD("esrtd",,"NG 133!","PrevPrice") -> 5.132 | J137: =RTD("esrtd",,"NG 133!","NewSettlement") ->  | L137: =RTD("esrtd",,"NG 133!","Expiration") -> 2025-11-25T07:00:00
A138: =RTD("esrtd",,"NG 134!","Delivery") -> Jan'26 | B138: =RTD("esrtd",,"NG 133!:134!","Market") ->  | C138: -0.11 | E138: =IF(D138<>"",E137-D138,IF(B138<>"",E137-B138,E137-C138)) -> 5.227 | F138: -0.015 | G138: =RTD("esrtd",,"NG 134!","Last") ->  | H138: =RTD("esrtd",,"NG 134!","Change") ->  | I138: =RTD("esrtd",,"NG 134!","PrevPrice") -> 5.242 | J138: =RTD("esrtd",,"NG 134!","NewSettlement") ->  | L138: =RTD("esrtd",,"NG 134!","Expiration") -> 2026-01-30T07:00:00
A139: =RTD("esrtd",,"NG 135!","Delivery") -> Feb'26 | B139: =RTD("esrtd",,"NG 134!:135!","Market") ->  | C139: 0.037 | E139: 5.19 | F139: -0.015 | G139: =RTD("esrtd",,"NG 135!","Last") ->  | H139: =RTD("esrtd",,"NG 135!","Change") ->  | I139: =RTD("esrtd",,"NG 135!","PrevPrice") -> 5.205 | J139: =RTD("esrtd",,"NG 135!","NewSettlement") ->  | L139: =RTD("esrtd",,"NG 135!","Expiration") -> 2026-02-27T07:00:00
A140: =RTD("esrtd",,"NG 136!","Delivery") -> Mar'26 | B140: =RTD("esrtd",,"NG 135!:136!","Market") ->  | C140: 0.088 | E140: 5.102 | F140: -0.015 | G140: =RTD("esrtd",,"NG 136!","Last") ->  | H140: =RTD("esrtd",,"NG 136!","Change") ->  | I140: =RTD("esrtd",,"NG 136!","PrevPrice") -> 5.117 | J140: =RTD("esrtd",,"NG 136!","NewSettlement") ->  | L140: =RTD("esrtd",,"NG 136!","Expiration") -> 2026-03-31T08:00:00
A141: =RTD("esrtd",,"NG 137!","Delivery") -> Apr'26 | B141: =RTD("esrtd",,"NG 136!:137!","Market") ->  | C141: 0.39 | E141: 4.712 | F141: -0.015 | G141: =RTD("esrtd",,"NG 137!","Last") ->  | H141: =RTD("esrtd",,"NG 137!","Change") ->  | I141: =RTD("esrtd",,"NG 137!","PrevPrice") -> 4.727 | J141: =RTD("esrtd",,"NG 137!","NewSettlement") ->  | L141: =RTD("esrtd",,"NG 137!","Expiration") -> 2026-04-30T08:00:00
A142: =RTD("esrtd",,"NG 138!","Delivery") -> May'26 | B142: =RTD("esrtd",,"NG 137!:138!","Market") ->  | C142: 0.015 | E142: 4.697 | F142: -0.015 | G142: =RTD("esrtd",,"NG 138!","Last") ->  | H142: =RTD("esrtd",,"NG 138!","Change") ->  | I142: =RTD("esrtd",,"NG 138!","PrevPrice") -> 4.712 | J142: =RTD("esrtd",,"NG 138!","NewSettlement") ->  | L142: =RTD("esrtd",,"NG 138!","Expiration") -> 2026-05-29T08:00:00
A143: =RTD("esrtd",,"NG 139!","Delivery") -> Jun'26 | B143: =RTD("esrtd",,"NG 138!:139!","Market") ->  | C143: -0.038 | E143: 4.735 | F143: -0.015 | G143: =RTD("esrtd",,"NG 139!","Last") ->  | H143: =RTD("esrtd",,"NG 139!","Change") ->  | I143: =RTD("esrtd",,"NG 139!","PrevPrice") -> 4.75 | J143: =RTD("esrtd",,"NG 139!","NewSettlement") ->  | L143: =RTD("esrtd",,"NG 139!","Expiration") -> 2026-06-30T08:00:00
A144: =RTD("esrtd",,"NG 140!","Delivery") -> Jul'26 | B144: =RTD("esrtd",,"NG 139!:140!","Market") ->  | C144: -0.048 | E144: 4.783 | F144: -0.015 | G144: =RTD("esrtd",,"NG 140!","Last") ->  | H144: =RTD("esrtd",,"NG 140!","Change") ->  | I144: =RTD("esrtd",,"NG 140!","PrevPrice") -> 4.798 | J144: =RTD("esrtd",,"NG 140!","NewSettlement") ->  | L144: =RTD("esrtd",,"NG 140!","Expiration") -> 2026-07-31T08:00:00
A145: =RTD("esrtd",,"NG 141!","Delivery") -> Aug'26 | B145: =RTD("esrtd",,"NG 140!:141!","Market") ->  | C145: -0.044 | E145: 4.827 | F145: -0.015 | G145: =RTD("esrtd",,"NG 141!","Last") ->  | H145: =RTD("esrtd",,"NG 141!","Change") ->  | I145: =RTD("esrtd",,"NG 141!","PrevPrice") -> 4.842 | J145: =RTD("esrtd",,"NG 141!","NewSettlement") ->  | L145: =RTD("esrtd",,"NG 141!","Expiration") -> 2026-08-31T08:00:00
A146: =RTD("esrtd",,"NG 142!","Delivery") -> Sep'26 | B146: =RTD("esrtd",,"NG 141!:142!","Market") ->  | C146: -0.015 | E146: 4.842 | F146: -0.015 | G146: =RTD("esrtd",,"NG 142!","Last") ->  | H146: =RTD("esrtd",,"NG 142!","Change") ->  | I146: =RTD("esrtd",,"NG 142!","PrevPrice") -> 4.857 | J146: =RTD("esrtd",,"NG 142!","NewSettlement") ->  | L146: =RTD("esrtd",,"NG 142!","Expiration") -> 2026-09-30T08:00:00
A147: =RTD("esrtd",,"NG 143!","Delivery") -> Oct'26 | B147: =RTD("esrtd",,"NG 142!:143!","Market") ->  | C147: -0.062 | E147: 4.904 | F147: -0.015 | G147: =RTD("esrtd",,"NG 143!","Last") ->  | H147: =RTD("esrtd",,"NG 143!","Change") ->  | I147: =RTD("esrtd",,"NG 143!","PrevPrice") -> 4.919 | J147: =RTD("esrtd",,"NG 143!","NewSettlement") ->  | L147: =RTD("esrtd",,"NG 143!","Expiration") -> 2026-10-30T08:00:00
A148: =RTD("esrtd",,"NG 144!","Delivery") -> Nov'26 | B148: =RTD("esrtd",,"NG 143!:144!","Market") ->  | C148: -0.12 | E148: 5.024 | F148: -0.015 | G148: =RTD("esrtd",,"NG 144!","Last") ->  | H148: =RTD("esrtd",,"NG 144!","Change") ->  | I148: =RTD("esrtd",,"NG 144!","PrevPrice") -> 5.039 | J148: =RTD("esrtd",,"NG 144!","NewSettlement") ->  | L148: =RTD("esrtd",,"NG 144!","Expiration") -> 2026-11-30T07:00:00
A149: =RTD("esrtd",,"NG 145!","Delivery") -> Dec'26 | B149: =RTD("esrtd",,"NG 144!:145!","Market") ->  | C149: -0.23 | E149: 5.254 | F149: -0.015 | G149: =RTD("esrtd",,"NG 145!","Last") ->  | H149: =RTD("esrtd",,"NG 145!","Change") ->  | I149: =RTD("esrtd",,"NG 145!","PrevPrice") -> 5.269 | J149: =RTD("esrtd",,"NG 145!","NewSettlement") ->  | L149: =RTD("esrtd",,"NG 145!","Expiration") -> 2026-12-31T07:00:00
A150: ©2013 Interactive Data Corporation. All Rights Reserved.

Sheet Forward Curve Chart
B30: ©2013 Interactive Data Corporation. All Rights Reserved.
